Workbook

Sheet Worksheet
A1: Local Water Supply Plan Completion Assistance Tool v6.0
A3: Water System Name: | B3: =IF(B4<>0,VLOOKUP(B4,DWR_LWSP_Data_Systems!A2:B702,2,FALSE),"No Data") -> No Data
A4: PWSID#:
A5: Reporting Year: | D5: Full instructions for the LWSP can be found here: | G5: LWSP Instructions
A6: =IF(B5<>0,IF(OR(MOD(B5,400)=0,AND(MOD(B5,4)=0,MOD(B5,100)<>0)),"Leap Year", "Not a Leap Year"),"No Data") -> No Data | B6: =IF(B5<>0,365+IF(MOD(B5,4)=0,IF(MOD(B5,100)=0,IF(MOD(B5,400)=0,1,0),1),0),"No Data") -> No Data
A7: Water Use by Type | D7: =D9+D10+D11+D12+D13 -> 0 | G7: =G9+G10+G11+G12 -> 0
A8: Type of Use | B8: Metered Connections | C8: Gallons | D8: Metered Average Use (MGD) | E8: Non-Metered Connections | F8: Estimated Gallons | G8: Non-Metered Estimated Use (MGD)
A9: Residential | D9: =IF(C9>0,C9/1000000/$B$6,0) -> 0 | G9: =IF(F9>0,F9/1000000/$B$6,0) -> 0
A10: Commercial | D10: =IF(C10>0,C10/1000000/$B$6,0) -> 0 | G10: =IF(F10>0,F10/1000000/$B$6,0) -> 0
A11: Industrial | D11: =IF(C11>0,C11/1000000/$B$6,0) -> 0 | G11: 0
A12: Institutional | D12: =IF(C12>0,C12/1000000/$B$6,0) -> 0 | G12: 0
A13: System Process | D13: =IF(C13>0,C13/1000000/$B$6,0) -> 0
A19: Water Sales | D19: =(IF(C21>0,D21*E21,0)+IF(C22>0,D22*E22,0)+IF(C23>0,D23*E23,0)+IF(C24>0,D24*E24,0)+IF(C25>0,D25*E25,0)+IF(C26>0,D26*E26,0)+IF(C27>0,D27*E27,0)+IF(C28>0,D28*E28,0)+IF(C29>0,D29*E29,0)+IF(C30>0,D30*E30,0)+IF(C31>0,D31*E31))/IF(A6="Leap Year",366,365) -> 0
A20: Purchaser | B20: PWSID | C20: Gallons Sold | D20: Average Daily Sold (MGD) | E20: Days Sold
D21: =IF(E21=0,0,IF(C21>0,C21/1000000/E21,0)) -> 0
D22: 0
D23: 0
D24: 0
D25: 0
D26: 0
D27: 0
D28: 0
D29: 0
D30: 0
D31: 0
A37: Monthly Withdrawals & Purchases | D37: Click instructions button before completing table | I37: =(SUM(C39:C42)+SUM(F39:F42)+SUM(I39:I42))/12 -> 0
B38: Gallons | C38: Average Daily Use (MGD) | E38: Gallons | F38: Average Daily Use (MGD) | H38: Gallons | I38: Average Daily Use (MGD)
A39: January | C39: =IF(B39>0,IF(D45="N",B39/1000000/DAY(DATE(B5,1+1,1)-1)+D118,B39/1000000/DAY(DATE(B5,1+1,1)-1)),D118) -> 0 | D39: May | F39: =IF(E39>0,IF(D45="N",E39/1000000/DAY(DATE(B5,5+1,1)-1)+D118,E39/1000000/DAY(DATE(B5,5+1,1)-1)),D118) -> 0 | G39: September | I39: =IF(H39>0,IF(D45="N",H39/1000000/DAY(DATE(B5,9+1,1)-1)+D118,H39/1000000/DAY(DATE(B5,9+1,1)-1)),D118) -> 0
A40: February | C40: =IF(B40>0,IF(D45="N",B40/1000000/DAY(DATE(B5,2+1,1)-1)+D118,B40/1000000/DAY(DATE(B5,2+1,1)-1)),D118) -> 0 | D40: June | F40: =IF(E40>0,IF(D45="N",E40/1000000/DAY(DATE(B5,6+1,1)-1)+D118,E40/1000000/DAY(DATE(B5,6+1,1)-1)),D118) -> 0 | G40: October | I40: =IF(H40>0,IF(D45="N",H40/1000000/DAY(DATE(B5,10+1,1)-1)+D118,H40/1000000/DAY(DATE(B5,10+1,1)-1)),D118) -> 0
A41: March | C41: =IF(B41>0,IF(D45="N",B41/1000000/DAY(DATE(B5,3+1,1)-1)+D118,B41/1000000/DAY(DATE(B5,3+1,1)-1)),D118) -> 0 | D41: July | F41: =IF(E41>0,IF(D45="N",E41/1000000/DAY(DATE(B5,7+1,1)-1)+D118,E41/1000000/DAY(DATE(B5,7+1,1)-1)),D118) -> 0 | G41: November | I41: =IF(H41>0,IF(D45="N",H41/1000000/DAY(DATE(B5,11+1,1)-1)+D118,H41/1000000/DAY(DATE(B5,11+1,1)-1)),D118) -> 0
A42: April | C42: =IF(B42>0,IF(D45="N",B42/1000000/DAY(DATE(B5,4+1,1)-1)+D118,B42/1000000/DAY(DATE(B5,4+1,1)-1)),D118) -> 0 | D42: August | F42: =IF(E42>0,IF(D45="N",E42/1000000/DAY(DATE(B5,8+1,1)-1)+D118,E42/1000000/DAY(DATE(B5,8+1,1)-1)),D118) -> 0 | G42: December | I42: =IF(H42>0,IF(D45="N",H42/1000000/DAY(DATE(B5,12+1,1)-1)+D118,H42/1000000/DAY(DATE(B5,12+1,1)-1)),D118) -> 0
A43: Monthly withdrawals & purchases is calculated using the annual average purchase water, if any, which may be different from the monthly amount of water purchased.
A45: Does your system purchase source water ONLY?
A48: Ground Water Sources | C48: =(IF(B50>0,C50*D50,0)+IF(B51>0,C51*D51,0)+IF(B52>0,C52*D52,0)+IF(B53>0,C53*D53,0)+IF(B54>0,C54*D54,0)+IF(B55>0,C55*D55,0)+IF(B56>0,C56*D56,0)+IF(B57>0,C57*D57,0)+IF(B58>0,C58*D58,0)+IF(B59>0,C59*D59,0)+IF(B60>0,C60*D60)+IF(B61>0,C61*D61,0)+IF(B62>0,C62*D62,0)+IF(B63>0,C63*D63,0)+IF(B64>0,C64*D64,0)+IF(B65>0,C65*D65,0)+IF(B66>0,C66*D66,0)+IF(B67>0,C67*D67,0)+IF(B68>0,C68*D68,0)+IF(B69>0,C69*D69,0)+IF(B70>0,C70*D70,0)+IF(B71>0,C71*D71,0)+IF(B72>0,C72*D72,0)+IF(B73>0,C73*D73,0)+IF(B74>0,C74*D74,0)+IF(B75>0,C75*D75,0)+IF(B76>0,C76*D76,0)+IF(B77>0,C77*D77,0)+IF(B78>0,C78*D78,0)+IF(B79>0,C79*D79,0)+IF(B80>0,C80*D80,0)+IF(B81>0,C81*D81,0)+IF(B82>0,C82*D82,0)+IF(B83>0,C83*D83,0)+IF(B84>0,C84*D84,0)+IF(B85>0,C85*D85,0)+IF(B86>0,C86*D86,0)+IF(B87>0,C87*D87,0)+IF(B88>0,C88*D88,0)+IF(B89>0,C89*D89,0)+IF(B90>0,C90*D90,0)+IF(B91>0,C91*D91,0)+IF(B92>0,C92*D92,0)+IF(B93>0,C93*D93,0)+IF(B94>0,C94*D94,0)+IF(B95>0,C95*D95,0)+IF(B96>0,C96*D96,0)+IF(B97>0,C97*D97,0)+IF(B98>0,C98*D98,0)+IF(B99>0,C99*D99,0)+IF(B100>0,C100*D100,0))/IF(A6="Leap Year",366,365) -> 0
A49: Name or Number | B49: Gallons Pumped | C49: Average Daily Withdrawal (MGD) | D49: Days Used
C50: =IF(D50=0,0,IF(B50>0,B50/1000000/D50,0)) -> 0
C51: 0
C52: 0
C53: 0
C54: 0
C55: 0
C56: 0
C57: 0
C58: 0
C59: 0
C60: 0
C61: 0
C62: 0
C63: 0
C64: 0
C65: 0
C66: 0
C67: 0
C68: 0
C69: 0
C70: 0
C71: 0
C72: 0
C73: 0
C74: 0
C75: 0
C76: 0
C77: 0
C78: 0
C79: 0
C80: 0
C81: 0
C82: =IF(D82=0,0,IF(B82>0,B82/1000000/D82,0)) -> 0
C83: 0
C84: 0
C85: 0
C86: 0
C87: 0
C88: 0
C89: 0
C90: 0
C91: 0
C92: 0
C93: 0
C94: 0
C95: 0
C96: 0
C97: 0
C98: 0
C99: 0
C100: 0
A106: Surface Water Sources | D106: =(IF(C108>0,D108*E108,0)+IF(C109>0,D109*E109,0)+IF(C110>0,D110*E110,0)+IF(C111>0,D111*E111,0)+IF(C112>0,D112*E112,0))/IF(A6="Leap Year",366,365) -> 0
A107: Stream | B107: Reservoir | C107: Gallons Withdrawn | D107: Average Daily Withdrawal (MGD) | E107: Days Used
D108: =IF(E108=0,0,IF(C108>0,C108/1000000/E108,0)) -> 0
D109: =IF(E109=0,0,IF(C109>0,C109/1000000/E109,0)) -> 0
D110: =IF(E110=0,0,IF(C110>0,C110/1000000/E110,0)) -> 0
D111: =IF(E111=0,0,IF(C111>0,C111/1000000/E111,0)) -> 0
D112: =IF(E112=0,0,IF(C112>0,C112/1000000/E112,0)) -> 0
A118: Water Purchases From Other Systems | D118: =(IF(C120>0,D120*E120,0)+IF(C121>0,D121*E121,0)+IF(C122>0,D122*E122,0)+IF(C123>0,D123*E123,0)+IF(C124>0,D124*E124,0))/IF(A6="Leap Year",366,365) -> 0
A119: Seller | B119: PWSID | C119: Gallons Purchased | D119: Average Daily Purchased (MGD) | E119: Days Used
D120: =IF(E120=0,0,IF(C120>0,C120/1000000/E120,0)) -> 0
D121: =IF(E121=0,0,IF(C121>0,C121/1000000/E121,0)) -> 0
D122: =IF(E122=0,0,IF(C122>0,C122/1000000/E122,0)) -> 0
D123: =IF(E123=0,0,IF(C123>0,C123/1000000/E123,0)) -> 0
D124: =IF(E124=0,0,IF(C124>0,C124/1000000/E124,0)) -> 0
A130: Monthly Discharges | C130: Click instructions button before completing table | I130: =(SUM(C132:C135)+SUM(F132:F135)+SUM(I132:I135))/12 -> 0
B131: Gallons | C131: Average Daily Use (MGD) | E131: Gallons | F131: Average Daily Use (MGD) | H131: Gallons | I131: Average Daily Use (MGD)
A132: January | C132: =IF(B132>0,IF(E138="N",B132/1000000/DAY(DATE(B5,1+1,1)-1)+D141,B132/1000000/DAY(DATE(B5,1+1,1)-1)),D141) -> 0 | D132: May | F132: =IF(E132>0,IF(E138="N",E132/1000000/DAY(DATE(B5,5+1,1)-1)+D141,E132/1000000/DAY(DATE(B5,5+1,1)-1)),D141) -> 0 | G132: September | I132: =IF(H132>0,IF(E138="N",H132/1000000/DAY(DATE(B5,9+1,1)-1)+D141,H132/1000000/DAY(DATE(B5,9+1,1)-1)),D141) -> 0
A133: February | C133: =IF(B133>0,IF(E138="N",B133/1000000/DAY(DATE(B5,2+1,1)-1)+D141,B133/1000000/DAY(DATE(B5,2+1,1)-1)),D141) -> 0 | D133: June | F133: =IF(E133>0,IF(E138="N",E133/1000000/DAY(DATE(B5,6+1,1)-1)+D141,E133/1000000/DAY(DATE(B5,6+1,1)-1)),D141) -> 0 | G133: October | I133: =IF(H133>0,IF(E138="N",H133/1000000/DAY(DATE(B5,10+1,1)-1)+D141,H133/1000000/DAY(DATE(B5,10+1,1)-1)),D141) -> 0
A134: March | C134: =IF(B134>0,IF(E138="N",B134/1000000/DAY(DATE(B5,3+1,1)-1)+D141,B134/1000000/DAY(DATE(B5,3+1,1)-1)),D141) -> 0 | D134: July | F134: =IF(E134>0,IF(E138="N",E134/1000000/DAY(DATE(B5,7+1,1)-1)+D141,E134/1000000/DAY(DATE(B5,7+1,1)-1)),D141) -> 0 | G134: November | I134: =IF(H134>0,IF(E138="N",H134/1000000/DAY(DATE(B5,11+1,1)-1)+D141,H134/1000000/DAY(DATE(B5,11+1,1)-1)),D141) -> 0
A135: April | C135: =IF(B135>0,IF(E138="N",B135/1000000/DAY(DATE(B5,4+1,1)-1)+D141,B135/1000000/DAY(DATE(B5,4+1,1)-1)),D141) -> 0 | D135: August | F135: =IF(E135>0,IF(E138="N",E135/1000000/DAY(DATE(B5,8+1,1)-1)+D141,E135/1000000/DAY(DATE(B5,8+1,1)-1)),D141) -> 0 | G135: December | I135: =IF(H135>0,IF(E138="N",H135/1000000/DAY(DATE(B5,12+1,1)-1)+D141,H135/1000000/DAY(DATE(B5,12+1,1)-1)),D141) -> 0
A136: Monthly average daily discharge is calculated using the annual average interconnection discharge, if any, which may be different from the monthly interconnection discharge.
A138: Does your system discharge wastewater via an interconnection ONLY?
A141: Wastewater Interconnections | D141: =(IF(F143<>"R",D143*E143,0)+IF(F144<>"R",D144*E144,0)+IF(F145<>"R",D145*E145,0)+IF(F146<>"R",D146*E146,0)+IF(F147<>"R",D147*E147,0)+IF(F148<>"R",D148*E148,0)+IF(F149<>"R",D149*E149,0)+IF(F150<>"R",D150*E150,0))/IF(A6="Leap Year",366,365) -> 0
A142: Water System | B142: PWSID | C142: Gallons | D142: Average Daily Amount (MGD) | E142: Days Used | F142: Type (D or R)
D143: =IF(E143=0,0,IF(C143>0,C143/1000000/E143,0)) -> 0
D144: 0
D145: 0
D146: 0
D147: 0
D148: 0
D149: 0
D150: 0
B152: MGD
A153: Average Annual Withdrawals and Purchases | B153: =ROUND(C48+D106+D118,5) -> 0 | C153: Discrepancy
B154: MGD | C154: =IF(B153>0,ABS(B153-B155)/((B153+B155)/2),0) -> 0 | D154: If the discrepancy is greater than 5%, check withdrawals and purchases.
A155: Average Monthly Withdrawals and Purchases | B155: =I37 -> 0
B157: MGD
A158: Average Annual Accounted-for Water Use | B158: =IF(D7=0,IF(G7=0,"No Data",D19+D7+G7),D19+D7+G7) -> No Data
B160: MGD | C160: Percent
A161: Unaccounted-for Water | B161: =IF(D7=0,IF(G7=0,0,B153-B158),B153-B158) -> 0 | C161: =IF(B161>0,B161/(D118+D106+C48),IF(B161=0,0,"Error")) -> 0 | D161: If the unaccounted-for water is negative, check water used and source water. Unaccounted-for water can not be negative.
A165: Unaccounted-for Water is lost revenue for your water system. See below for an
A166: estimate of lost revenue based on your system operations.
A167: Although this workbook is designed to give you a snapshot of water related revenue
A168: loss, it should not be viewed as a substitute for conducting a complete water audit.
A169: To access the small system water audit or AWWA water audit, click on the State Seal.
A171: Inside Residential Water Rate (for first 5,000 gallons used)1: | D171: =IF(B3<>"",IFERROR(VLOOKUP(B3,DWR_LWSP_Data_Systems!B1:H701,7),"Water system name match not found."),"No Data") -> Water system name match not found.
A172: Estimated Revenue loss for the Reporting Year2,3: | D172: =IF(B3<>"",IFERROR(B161*B6*1000000*D171/5000,"Water system name match not found."),0) -> Water system name match not found.
A174: 1: Data taken from the Tables of Rate Structures and Computed Bills published by the UNC Environmental Finance Center and NC League of Municipalities as of January 2023. All water systems may not be represented and rates may vary. Assumptions made where needed.
A175: 2: All revenue loss is not recoverable, and includes losses from infrastructure leaks, meter errors, billing errors, theft, and other uses not accounted for in the local water supply plan.
A176: 3: Based on residential rates and unaccounted-for water which includes water that was delivered but not sold, and water lost in the distribution system. All water systems may not be represented. A water audit is recommended for a more detailed revenue loss estimate.

Sheet January (hidden)
A1: Monthly Withdrawals & Purchases
A2: Source Type | B2: W1 | C2: W2 | D2: W3 | E2: P1 | F2: P2 | G2: S | H2: Total Gal (Day)
A3: Date | B3: Thousand Gal | C3: Thousand Gal | D3: Thousand Gal | E3: Thousand Gal | F3: Thousand Gal | G3: Thousand Gal
A4: 1 | H4: =SUM(B4:G4)*1000 -> 0
A5: =A4+1 -> 2 | H5: =SUM(B5:G5)*1000 -> 0
A6: =A5+1 -> 3 | H6: 0
A7: 4 | H7: 0
A8: 5 | H8: 0
A9: 6 | H9: 0
A10: 7 | H10: 0
A11: 8 | H11: 0
A12: 9 | H12: 0
A13: 10 | H13: 0
A14: 11 | H14: 0
A15: 12 | H15: 0
A16: 13 | H16: 0
A17: 14 | H17: 0
A18: 15 | H18: 0
A19: 16 | H19: 0
A20: 17 | H20: 0
A21: 18 | H21: 0
A22: 19 | H22: 0
A23: 20 | H23: 0
A24: 21 | H24: 0
A25: 22 | H25: 0
A26: 23 | H26: 0
A27: 24 | H27: 0
A28: 25 | H28: 0
A29: 26 | H29: 0
A30: 27 | H30: 0
A31: 28 | H31: 0
A32: 29 | H32: 0
A33: 30 | H33: 0
A34: 31 | H34: 0
A35: Total Gal (Month) | B35: =SUM(B4:B34)*1000 -> 0 | C35: =SUM(C4:C34)*1000 -> 0 | D35: 0 | E35: 0 | F35: 0 | G35: 0 | H35: =SUM(H4:H34) -> 0

Sheet February (hidden)
A1: Monthly Withdrawals & Purchases
A2: Source Type | B2: =January!B2 -> W1 | C2: =January!C2 -> W2 | D2: =January!D2 -> W3 | E2: =January!E2 -> P1 | F2: =January!F2 -> P2 | G2: =January!G2 -> S | H2: Total Gal (Day)
A3: Date | B3: Thousand Gal | C3: Thousand Gal | D3: Thousand Gal | E3: Thousand Gal | F3: Thousand Gal | G3: Thousand Gal
A4: 1 | H4: =SUM(B4:G4)*1000 -> 0
A5: =A4+1 -> 2 | H5: =SUM(B5:G5)*1000 -> 0
A6: =A5+1 -> 3 | H6: 0
A7: 4 | H7: 0
A8: 5 | H8: 0
A9: 6 | H9: 0
A10: 7 | H10: 0
A11: 8 | H11: 0
A12: 9 | H12: 0
A13: 10 | H13: 0
A14: 11 | H14: 0
A15: 12 | H15: 0
A16: 13 | H16: 0
A17: 14 | H17: 0
A18: 15 | H18: 0
A19: 16 | H19: 0
A20: 17 | H20: 0
A21: 18 | H21: 0
A22: 19 | H22: 0
A23: 20 | H23: 0
A24: 21 | H24: 0
A25: 22 | H25: 0
A26: 23 | H26: 0
A27: 24 | H27: 0
A28: 25 | H28: 0
A29: 26 | H29: 0
A30: 27 | H30: 0
A31: 28 | H31: 0
A32: 29 | H32: 0
A33: 30 | H33: 0
A34: 31 | H34: 0
A35: Total Gal (Month) | B35: =SUM(B4:B34)*1000 -> 0 | C35: =SUM(C4:C34)*1000 -> 0 | D35: 0 | E35: 0 | F35: 0 | G35: 0 | H35: =SUM(H4:H34) -> 0

Sheet March (hidden)
A1: Monthly Withdrawals & Purchases
A2: Source Type | B2: =January!B2 -> W1 | C2: =January!C2 -> W2 | D2: =January!D2 -> W3 | E2: =January!E2 -> P1 | F2: =January!F2 -> P2 | G2: =January!G2 -> S | H2: Total Gal (Day)
A3: Date | B3: Thousand Gal | C3: Thousand Gal | D3: Thousand Gal | E3: Thousand Gal | F3: Thousand Gal | G3: Thousand Gal
A4: 1 | H4: =SUM(B4:G4)*1000 -> 0
A5: =A4+1 -> 2 | H5: =SUM(B5:G5)*1000 -> 0
A6: =A5+1 -> 3 | H6: 0
A7: 4 | H7: 0
A8: 5 | H8: 0
A9: 6 | H9: 0
A10: 7 | H10: 0
A11: 8 | H11: 0
A12: 9 | H12: 0
A13: 10 | H13: 0
A14: 11 | H14: 0
A15: 12 | H15: 0
A16: 13 | H16: 0
A17: 14 | H17: 0
A18: 15 | H18: 0
A19: 16 | H19: 0
A20: 17 | H20: 0
A21: 18 | H21: 0
A22: 19 | H22: 0
A23: 20 | H23: 0
A24: 21 | H24: 0
A25: 22 | H25: 0
A26: 23 | H26: 0
A27: 24 | H27: 0
A28: 25 | H28: 0
A29: 26 | H29: 0
A30: 27 | H30: 0
A31: 28 | H31: 0
A32: 29 | H32: 0
A33: 30 | H33: 0
A34: 31 | H34: 0
A35: Total Gal (Month) | B35: =SUM(B4:B34)*1000 -> 0 | C35: =SUM(C4:C34)*1000 -> 0 | D35: 0 | E35: 0 | F35: 0 | G35: 0 | H35: =SUM(H4:H34) -> 0

Sheet April (hidden)
A1: Monthly Withdrawals & Purchases
A2: Source Type | B2: =January!B2 -> W1 | C2: =January!C2 -> W2 | D2: =January!D2 -> W3 | E2: =January!E2 -> P1 | F2: =January!F2 -> P2 | G2: =January!G2 -> S | H2: Total Gal (Day)
A3: Date | B3: Thousand Gal | C3: Thousand Gal | D3: Thousand Gal | E3: Thousand Gal | F3: Thousand Gal | G3: Thousand Gal
A4: 1 | H4: =SUM(B4:G4)*1000 -> 0
A5: =A4+1 -> 2 | H5: =SUM(B5:G5)*1000 -> 0
A6: =A5+1 -> 3 | H6: 0
A7: 4 | H7: 0
A8: 5 | H8: 0
A9: 6 | H9: 0
A10: 7 | H10: 0
A11: 8 | H11: 0
A12: 9 | H12: 0
A13: 10 | H13: 0
A14: 11 | H14: 0
A15: 12 | H15: 0
A16: 13 | H16: 0
A17: 14 | H17: 0
A18: 15 | H18: 0
A19: 16 | H19: 0
A20: 17 | H20: 0
A21: 18 | H21: 0
A22: 19 | H22: 0
A23: 20 | H23: 0
A24: 21 | H24: 0
A25: 22 | H25: 0
A26: 23 | H26: 0
A27: 24 | H27: 0
A28: 25 | H28: 0
A29: 26 | H29: 0
A30: 27 | H30: 0
A31: 28 | H31: 0
A32: 29 | H32: 0
A33: 30 | H33: 0
A34: 31 | H34: 0
A35: Total Gal (Month) | B35: =SUM(B4:B34)*1000 -> 0 | C35: =SUM(C4:C34)*1000 -> 0 | D35: 0 | E35: 0 | F35: 0 | G35: 0 | H35: =SUM(H4:H34) -> 0

Sheet May (hidden)
A1: Monthly Withdrawals & Purchases
A2: Source Type | B2: =January!B2 -> W1 | C2: =January!C2 -> W2 | D2: =January!D2 -> W3 | E2: =January!E2 -> P1 | F2: =January!F2 -> P2 | G2: =January!G2 -> S | H2: Total Gal (Day)
A3: Date | B3: Thousand Gal | C3: Thousand Gal | D3: Thousand Gal | E3: Thousand Gal | F3: Thousand Gal | G3: Thousand Gal
A4: 1 | H4: =SUM(B4:G4)*1000 -> 0
A5: =A4+1 -> 2 | H5: =SUM(B5:G5)*1000 -> 0
A6: =A5+1 -> 3 | H6: 0
A7: 4 | H7: 0
A8: 5 | H8: 0
A9: 6 | H9: 0
A10: 7 | H10: 0
A11: 8 | H11: 0
A12: 9 | H12: 0
A13: 10 | H13: 0
A14: 11 | H14: 0
A15: 12 | H15: 0
A16: 13 | H16: 0
A17: 14 | H17: 0
A18: 15 | H18: 0
A19: 16 | H19: 0
A20: 17 | H20: 0
A21: 18 | H21: 0
A22: 19 | H22: 0
A23: 20 | H23: 0
A24: 21 | H24: 0
A25: 22 | H25: 0
A26: 23 | H26: 0
A27: 24 | H27: 0
A28: 25 | H28: 0
A29: 26 | H29: 0
A30: 27 | H30: 0
A31: 28 | H31: 0
A32: 29 | H32: 0
A33: 30 | H33: 0
A34: 31 | H34: 0
A35: Total Gal (Month) | B35: =SUM(B4:B34)*1000 -> 0 | C35: =SUM(C4:C34)*1000 -> 0 | D35: 0 | E35: 0 | F35: 0 | G35: 0 | H35: =SUM(H4:H34) -> 0

Sheet June (hidden)
A1: Monthly Withdrawals & Purchases
A2: Source Type | B2: =January!B2 -> W1 | C2: =January!C2 -> W2 | D2: =January!D2 -> W3 | E2: =January!E2 -> P1 | F2: =January!F2 -> P2 | G2: =January!G2 -> S | H2: Total Gal (Day)
A3: Date | B3: Thousand Gal | C3: Thousand Gal | D3: Thousand Gal | E3: Thousand Gal | F3: Thousand Gal | G3: Thousand Gal
A4: 1 | H4: =SUM(B4:G4)*1000 -> 0
A5: =A4+1 -> 2 | H5: =SUM(B5:G5)*1000 -> 0
A6: =A5+1 -> 3 | H6: 0
A7: 4 | H7: 0
A8: 5 | H8: 0
A9: 6 | H9: 0
A10: 7 | H10: 0
A11: 8 | H11: 0
A12: 9 | H12: 0
A13: 10 | H13: 0
A14: 11 | H14: 0
A15: 12 | H15: 0
A16: 13 | H16: 0
A17: 14 | H17: 0
A18: 15 | H18: 0
A19: 16 | H19: 0
A20: 17 | H20: 0
A21: 18 | H21: 0
A22: 19 | H22: 0
A23: 20 | H23: 0
A24: 21 | H24: 0
A25: 22 | H25: 0
A26: 23 | H26: 0
A27: 24 | H27: 0
A28: 25 | H28: 0
A29: 26 | H29: 0
A30: 27 | H30: 0
A31: 28 | H31: 0
A32: 29 | H32: 0
A33: 30 | H33: 0
A34: 31 | H34: 0
A35: Total Gal (Month) | B35: =SUM(B4:B34)*1000 -> 0 | C35: =SUM(C4:C34)*1000 -> 0 | D35: 0 | E35: 0 | F35: 0 | G35: 0 | H35: =SUM(H4:H34) -> 0

Sheet July (hidden)
A1: Monthly Withdrawals & Purchases
A2: Source Type | B2: =January!B2 -> W1 | C2: =January!C2 -> W2 | D2: =January!D2 -> W3 | E2: =January!E2 -> P1 | F2: =January!F2 -> P2 | G2: =January!G2 -> S | H2: Total Gal (Day)
A3: Date | B3: Thousand Gal | C3: Thousand Gal | D3: Thousand Gal | E3: Thousand Gal | F3: Thousand Gal | G3: Thousand Gal
A4: 1 | H4: =SUM(B4:G4)*1000 -> 0
A5: =A4+1 -> 2 | H5: =SUM(B5:G5)*1000 -> 0
A6: =A5+1 -> 3 | H6: 0
A7: 4 | H7: 0
A8: 5 | H8: 0
A9: 6 | H9: 0
A10: 7 | H10: 0
A11: 8 | H11: 0
A12: 9 | H12: 0
A13: 10 | H13: 0
A14: 11 | H14: 0
A15: 12 | H15: 0
A16: 13 | H16: 0
A17: 14 | H17: 0
A18: 15 | H18: 0
A19: 16 | H19: 0
A20: 17 | H20: 0
A21: 18 | H21: 0
A22: 19 | H22: 0
A23: 20 | H23: 0
A24: 21 | H24: 0
A25: 22 | H25: 0
A26: 23 | H26: 0
A27: 24 | H27: 0
A28: 25 | H28: 0
A29: 26 | H29: 0
A30: 27 | H30: 0
A31: 28 | H31: 0
A32: 29 | H32: 0
A33: 30 | H33: 0
A34: 31 | H34: 0
A35: Total Gal (Month) | B35: =SUM(B4:B34)*1000 -> 0 | C35: =SUM(C4:C34)*1000 -> 0 | D35: 0 | E35: 0 | F35: 0 | G35: 0 | H35: =SUM(H4:H34) -> 0

Sheet August (hidden)
A1: Monthly Withdrawals & Purchases
A2: Source Type | B2: =January!B2 -> W1 | C2: =January!C2 -> W2 | D2: =January!D2 -> W3 | E2: =January!E2 -> P1 | F2: =January!F2 -> P2 | G2: =January!G2 -> S | H2: Total Gal (Day)
A3: Date | B3: Thousand Gal | C3: Thousand Gal | D3: Thousand Gal | E3: Thousand Gal | F3: Thousand Gal | G3: Thousand Gal
A4: 1 | H4: =SUM(B4:G4)*1000 -> 0
A5: =A4+1 -> 2 | H5: =SUM(B5:G5)*1000 -> 0
A6: =A5+1 -> 3 | H6: 0
A7: 4 | H7: 0
A8: 5 | H8: 0
A9: 6 | H9: 0
A10: 7 | H10: 0
A11: 8 | H11: 0
A12: 9 | H12: 0
A13: 10 | H13: 0
A14: 11 | H14: 0
A15: 12 | H15: 0
A16: 13 | H16: 0
A17: 14 | H17: 0
A18: 15 | H18: 0
A19: 16 | H19: 0
A20: 17 | H20: 0
A21: 18 | H21: 0
A22: 19 | H22: 0
A23: 20 | H23: 0
A24: 21 | H24: 0
A25: 22 | H25: 0
A26: 23 | H26: 0
A27: 24 | H27: 0
A28: 25 | H28: 0
A29: 26 | H29: 0
A30: 27 | H30: 0
A31: 28 | H31: 0
A32: 29 | H32: 0
A33: 30 | H33: 0
A34: 31 | H34: 0
A35: Total Gal (Month) | B35: =SUM(B4:B34)*1000 -> 0 | C35: =SUM(C4:C34)*1000 -> 0 | D35: 0 | E35: 0 | F35: 0 | G35: 0 | H35: =SUM(H4:H34) -> 0

Sheet September (hidden)
A1: Monthly Withdrawals & Purchases
A2: Source Type | B2: =January!B2 -> W1 | C2: =January!C2 -> W2 | D2: =January!D2 -> W3 | E2: =January!E2 -> P1 | F2: =January!F2 -> P2 | G2: =January!G2 -> S | H2: Total Gal (Day)
A3: Date | B3: Thousand Gal | C3: Thousand Gal | D3: Thousand Gal | E3: Thousand Gal | F3: Thousand Gal | G3: Thousand Gal
A4: 1 | H4: =SUM(B4:G4)*1000 -> 0
A5: =A4+1 -> 2 | H5: =SUM(B5:G5)*1000 -> 0
A6: =A5+1 -> 3 | H6: 0
A7: 4 | H7: 0
A8: 5 | H8: 0
A9: 6 | H9: 0
A10: 7 | H10: 0
A11: 8 | H11: 0
A12: 9 | H12: 0
A13: 10 | H13: 0
A14: 11 | H14: 0
A15: 12 | H15: 0
A16: 13 | H16: 0
A17: 14 | H17: 0
A18: 15 | H18: 0
A19: 16 | H19: 0
A20: 17 | H20: 0
A21: 18 | H21: 0
A22: 19 | H22: 0
A23: 20 | H23: 0
A24: 21 | H24: 0
A25: 22 | H25: 0
A26: 23 | H26: 0
A27: 24 | H27: 0
A28: 25 | H28: 0
A29: 26 | H29: 0
A30: 27 | H30: 0
A31: 28 | H31: 0
A32: 29 | H32: 0
A33: 30 | H33: 0
A34: 31 | H34: 0
A35: Total Gal (Month) | B35: =SUM(B4:B34)*1000 -> 0 | C35: =SUM(C4:C34)*1000 -> 0 | D35: 0 | E35: 0 | F35: 0 | G35: 0 | H35: =SUM(H4:H34) -> 0

Sheet October (hidden)
A1: Monthly Withdrawals & Purchases
A2: Source Type | B2: =January!B2 -> W1 | C2: =January!C2 -> W2 | D2: =January!D2 -> W3 | E2: =January!E2 -> P1 | F2: =January!F2 -> P2 | G2: =January!G2 -> S | H2: Total Gal (Day)
A3: Date | B3: Thousand Gal | C3: Thousand Gal | D3: Thousand Gal | E3: Thousand Gal | F3: Thousand Gal | G3: Thousand Gal
A4: 1 | H4: =SUM(B4:G4)*1000 -> 0
A5: =A4+1 -> 2 | H5: =SUM(B5:G5)*1000 -> 0
A6: =A5+1 -> 3 | H6: 0
A7: 4 | H7: 0
A8: 5 | H8: 0
A9: 6 | H9: 0
A10: 7 | H10: 0
A11: 8 | H11: 0
A12: 9 | H12: 0
A13: 10 | H13: 0
A14: 11 | H14: 0
A15: 12 | H15: 0
A16: 13 | H16: 0
A17: 14 | H17: 0
A18: 15 | H18: 0
A19: 16 | H19: 0
A20: 17 | H20: 0
A21: 18 | H21: 0
A22: 19 | H22: 0
A23: 20 | H23: 0
A24: 21 | H24: 0
A25: 22 | H25: 0
A26: 23 | H26: 0
A27: 24 | H27: 0
A28: 25 | H28: 0
A29: 26 | H29: 0
A30: 27 | H30: 0
A31: 28 | H31: 0
A32: 29 | H32: 0
A33: 30 | H33: 0
A34: 31 | H34: 0
A35: Total Gal (Month) | B35: =SUM(B4:B34)*1000 -> 0 | C35: =SUM(C4:C34)*1000 -> 0 | D35: 0 | E35: 0 | F35: 0 | G35: 0 | H35: =SUM(H4:H34) -> 0

Sheet November (hidden)
A1: Monthly Withdrawals & Purchases
A2: Source Type | B2: =January!B2 -> W1 | C2: =January!C2 -> W2 | D2: =January!D2 -> W3 | E2: =January!E2 -> P1 | F2: =January!F2 -> P2 | G2: =January!G2 -> S | H2: Total Gal (Day)
A3: Date | B3: Thousand Gal | C3: Thousand Gal | D3: Thousand Gal | E3: Thousand Gal | F3: Thousand Gal | G3: Thousand Gal
A4: 1 | H4: =SUM(B4:G4)*1000 -> 0
A5: =A4+1 -> 2 | H5: =SUM(B5:G5)*1000 -> 0
A6: =A5+1 -> 3 | H6: 0
A7: 4 | H7: 0
A8: 5 | H8: 0
A9: 6 | H9: 0
A10: 7 | H10: 0
A11: 8 | H11: 0
A12: 9 | H12: 0
A13: 10 | H13: 0
A14: 11 | H14: 0
A15: 12 | H15: 0
A16: 13 | H16: 0
A17: 14 | H17: 0
A18: 15 | H18: 0
A19: 16 | H19: 0
A20: 17 | H20: 0
A21: 18 | H21: 0
A22: 19 | H22: 0
A23: 20 | H23: 0
A24: 21 | H24: 0
A25: 22 | H25: 0
A26: 23 | H26: 0
A27: 24 | H27: 0
A28: 25 | H28: 0
A29: 26 | H29: 0
A30: 27 | H30: 0
A31: 28 | H31: 0
A32: 29 | H32: 0
A33: 30 | H33: 0
A34: 31 | H34: 0
A35: Total Gal (Month) | B35: =SUM(B4:B34)*1000 -> 0 | C35: =SUM(C4:C34)*1000 -> 0 | D35: 0 | E35: 0 | F35: 0 | G35: 0 | H35: =SUM(H4:H34) -> 0

Sheet December (hidden)
A1: Monthly Withdrawals & Purchases
A2: Source Type | B2: =January!B2 -> W1 | C2: =January!C2 -> W2 | D2: =January!D2 -> W3 | E2: =January!E2 -> P1 | F2: =January!F2 -> P2 | G2: =January!G2 -> S | H2: Total Gal (Day)
A3: Date | B3: Thousand Gal | C3: Thousand Gal | D3: Thousand Gal | E3: Thousand Gal | F3: Thousand Gal | G3: Thousand Gal
A4: 1 | H4: =SUM(B4:G4)*1000 -> 0
A5: =A4+1 -> 2 | H5: =SUM(B5:G5)*1000 -> 0
A6: =A5+1 -> 3 | H6: 0
A7: 4 | H7: 0
A8: 5 | H8: 0
A9: 6 | H9: 0
A10: 7 | H10: 0
A11: 8 | H11: 0
A12: 9 | H12: 0
A13: 10 | H13: 0
A14: 11 | H14: 0
A15: 12 | H15: 0
A16: 13 | H16: 0
A17: 14 | H17: 0
A18: 15 | H18: 0
A19: 16 | H19: 0
A20: 17 | H20: 0
A21: 18 | H21: 0
A22: 19 | H22: 0
A23: 20 | H23: 0
A24: 21 | H24: 0
A25: 22 | H25: 0
A26: 23 | H26: 0
A27: 24 | H27: 0
A28: 25 | H28: 0
A29: 26 | H29: 0
A30: 27 | H30: 0
A31: 28 | H31: 0
A32: 29 | H32: 0
A33: 30 | H33: 0
A34: 31 | H34: 0
A35: Total Gal (Month) | B35: =SUM(B4:B34)*1000 -> 0 | C35: =SUM(C4:C34)*1000 -> 0 | D35: 0 | E35: 0 | F35: 0 | G35: 0 | H35: =SUM(H4:H34) -> 0

Sheet Summary (hidden)
A1: Monthly Withdrawals & Purchases
A2: Source Type | B2: =January!B2 -> W1 | C2: =January!C2 -> W2 | D2: =January!D2 -> W3 | E2: =January!E2 -> P1 | F2: =January!F2 -> P2 | G2: =January!G2 -> S | H2: Total Gal (Month)
A3: Month | B3: Total Gal | C3: Total Gal | D3: Total Gal | E3: Total Gal | F3: Total Gal | G3: Total Gal
A4: January | B4: =January!B35 -> 0 | C4: =January!C35 -> 0 | D4: =January!D35 -> 0 | E4: =January!E35 -> 0 | F4: =January!F35 -> 0 | G4: =January!G35 -> 0 | H4: =SUM(B4:G4) -> 0
A5: February | B5: =February!B35 -> 0 | C5: =February!C35 -> 0 | D5: =February!D35 -> 0 | E5: =February!E35 -> 0 | F5: =February!F35 -> 0 | G5: =February!G35 -> 0 | H5: =SUM(B5:G5) -> 0
A6: March | B6: =March!B35 -> 0 | C6: =March!C35 -> 0 | D6: =March!D35 -> 0 | E6: =March!E35 -> 0 | F6: =March!F35 -> 0 | G6: =March!G35 -> 0 | H6: 0
A7: April | B7: =April!B35 -> 0 | C7: =April!C35 -> 0 | D7: =April!D35 -> 0 | E7: =April!E35 -> 0 | F7: =April!F35 -> 0 | G7: =April!G35 -> 0 | H7: 0
A8: May | B8: =May!B35 -> 0 | C8: =May!C35 -> 0 | D8: =May!D35 -> 0 | E8: =May!E35 -> 0 | F8: =May!F35 -> 0 | G8: =May!G35 -> 0 | H8: 0
A9: June | B9: =June!B35 -> 0 | C9: =June!C35 -> 0 | D9: =June!D35 -> 0 | E9: =June!E35 -> 0 | F9: =June!F35 -> 0 | G9: =June!G35 -> 0 | H9: 0
A10: July | B10: =July!B35 -> 0 | C10: =July!C35 -> 0 | D10: =July!D35 -> 0 | E10: =July!E35 -> 0 | F10: =July!F35 -> 0 | G10: =July!G35 -> 0 | H10: 0
A11: August | B11: =August!B35 -> 0 | C11: =August!C35 -> 0 | D11: =August!D35 -> 0 | E11: =August!E35 -> 0 | F11: =August!F35 -> 0 | G11: =August!G35 -> 0 | H11: 0
A12: September | B12: =September!B35 -> 0 | C12: =September!C35 -> 0 | D12: =September!D35 -> 0 | E12: =September!E35 -> 0 | F12: =September!F35 -> 0 | G12: =September!G35 -> 0 | H12: 0
A13: October | B13: =October!B35 -> 0 | C13: =October!C35 -> 0 | D13: =October!D35 -> 0 | E13: =October!E35 -> 0 | F13: =October!F35 -> 0 | G13: =October!G35 -> 0 | H13: 0
A14: November | B14: =November!B35 -> 0 | C14: =November!C35 -> 0 | D14: =November!D35 -> 0 | E14: =November!E35 -> 0 | F14: =November!F35 -> 0 | G14: =November!G35 -> 0 | H14: 0
A15: December | B15: =December!B35 -> 0 | C15: =December!C35 -> 0 | D15: =December!D35 -> 0 | E15: =December!E35 -> 0 | F15: =December!F35 -> 0 | G15: =December!G35 -> 0 | H15: 0
A16: Total Gal (Year) | B16: =SUM(B4:B15) -> 0 | C16: =SUM(C4:C15) -> 0 | D16: 0 | E16: 0 | F16: 0 | G16: 0 | H16: =SUM(H4:H15) -> 0

Sheet EFC Table (hidden)
B1: EFC Data Tables Link | C1: Sanchez, Melanie Nicole <msanchez@sog.unc.edu>
A2: Helper Column (system+water+inside) | B2: System Name | C2: Service Type | D2: Inside/ Outside | E2: Operating Ratio (incl. Depreciation) | F2: Estimated Service Pop | G2: Residential Bills at Various Consumption Levels | H2: Price (V Monthly Bill)
A3: =B3&C3&D3 -> AberdeenWaterInside | B3: Aberdeen | C3: Water | D3: Inside | E3: 1.03 | F3: 12241 | G3: 5,000 gallons (668 cf) | H3: 24.55
A4: =B4&C4&D4 -> AhoskieWaterInside | B4: Ahoskie | C4: Water | D4: Inside | E4: 1.11 | F4: 5479 | G4: 5,000 gallons (668 cf) | H4: 40.58
A5: AlamanceWaterInside | B5: Alamance | C5: Water | D5: Inside | E5: 0.75 | F5: 1100 | G5: 5,000 gallons (668 cf) | H5: 37.85
A6: AlbemarleWaterInside | B6: Albemarle | C6: Water | D6: Inside | E6: 1.12 | F6: 17368 | G6: 5,000 gallons (668 cf) | H6: 27.46
A7: AndrewsWaterInside | B7: Andrews | C7: Water | D7: Inside | E7: 0.83 | F7: 3284 | G7: 5,000 gallons (668 cf) | H7: 43
A8: AngierWaterInside | B8: Angier | C8: Water | D8: Inside | E8: 1.22 | F8: 8468 | G8: 5,000 gallons (668 cf) | H8: 31.77
A9: Anson CoWaterInside | B9: Anson Co | C9: Water | D9: Inside | F9: 13771 | G9: 5,000 gallons (668 cf) | H9: 26.96
A10: AnsonvilleWaterInside | B10: Ansonville | C10: Water | D10: Inside | E10: 0.99 | F10: 1262 | G10: 5,000 gallons (668 cf) | H10: 31.04
A11: ApexWaterInside | B11: Apex | C11: Water | D11: Inside | E11: 0.85 | F11: 70272 | G11: 5,000 gallons (668 cf) | H11: 27.25
A12: Aqua North CarolinaWaterInside | B12: Aqua North Carolina | C12: Water | D12: Inside | F12: 187787 | G12: 5,000 gallons (668 cf) | H12: 52.6
A13: Aqua North Carolina - Brookwood and LaGrangeWaterInside | B13: Aqua North Carolina - Brookwood and LaGrange | C13: Water | D13: Inside | F13: 18022 | G13: 5,000 gallons (668 cf) | H13: 38.86
A14: Aqua North Carolina - Fairways and Beau RivageWaterInside | B14: Aqua North Carolina - Fairways and Beau Rivage | C14: Water | D14: Inside | F14: 115976 | G14: 5,000 gallons (668 cf) | H14: 16.31
A15: ArchdaleWaterInside | B15: Archdale | C15: Water | D15: Inside | E15: 1.24 | F15: 12700 | G15: 5,000 gallons (668 cf) | H15: 32.35
A16: AsheboroWaterInside | B16: Asheboro | C16: Water | D16: Inside | E16: 0.89 | F16: 27191 | G16: 5,000 gallons (668 cf) | H16: 31.5
A17: AshevilleWaterInside | B17: Asheville | C17: Water | D17: Inside | E17: 1.31 | F17: 156720 | G17: 5,000 gallons (668 cf) | H17: 37.43
A18: AtkinsonWaterInside | B18: Atkinson | C18: Water | D18: Inside | F18: 301 | G18: 5,000 gallons (668 cf) | H18: 59
A19: Atlantic BeachWaterInside | B19: Atlantic Beach | C19: Water | D19: Inside | E19: 1.37 | F19: 6380 | G19: 5,000 gallons (668 cf) | H19: 29.65
A20: AulanderWaterInside | B20: Aulander | C20: Water | D20: Inside | E20: 0.78 | F20: 1438 | G20: 5,000 gallons (668 cf) | H20: 38.5
A21: AuroraWaterInside | B21: Aurora | C21: Water | D21: Inside | E21: 0.9 | F21: 805 | G21: 5,000 gallons (668 cf) | H21: 43.36
A22: AutryvilleWaterInside | B22: Autryville | C22: Water | D22: Inside | E22: 1.12 | F22: 472 | G22: 5,000 gallons (668 cf) | H22: 54.36
A23: AydenWaterInside | B23: Ayden | C23: Water | D23: Inside | E23: 0.87 | F23: 6366 | G23: 5,000 gallons (668 cf) | H23: 53
A24: BaileyWaterInside | B24: Bailey | C24: Water | D24: Inside | E24: 1.12 | F24: 569 | G24: 5,000 gallons (668 cf) | H24: 40.55
A25: BakersvilleWaterInside | B25: Bakersville | C25: Water | D25: Inside | E25: 0.64 | F25: 725 | G25: 5,000 gallons (668 cf) | H25: 25
A26: Bald Head Island UtilitiesWaterInside | B26: Bald Head Island Utilities | C26: Water | D26: Inside | E26: 1.19 | F26: 3291 | G26: 5,000 gallons (668 cf) | H26: 61.49
A27: Banner ElkWaterInside | B27: Banner Elk | C27: Water | D27: Inside | E27: 1.36 | F27: 1407 | G27: 5,000 gallons (668 cf) | H27: 39.8
A28: BathWaterInside | B28: Bath | C28: Water | D28: Inside | E28: 0.87 | F28: 290 | G28: 5,000 gallons (668 cf) | H28: 63.5
A29: Baton Water CorporationWaterInside | B29: Baton Water Corporation | C29: Water | D29: Inside | F29: 7112 | G29: 5,000 gallons (668 cf) | H29: 32
A30: BeaufortWaterInside | B30: Beaufort | C30: Water | D30: Inside | E30: 1.26 | F30: 4787 | G30: 5,000 gallons (668 cf) | H30: 35.72
A31: Beaufort Co (NorthSide)WaterInside | B31: Beaufort Co (NorthSide) | C31: Water | D31: Inside | E31: 1.29 | F31: 13000 | G31: 5,000 gallons (668 cf) | H31: 58.8
A32: Beaufort Co (SouthSide)WaterInside | B32: Beaufort Co (SouthSide) | C32: Water | D32: Inside | E32: 1.29 | F32: 9263 | G32: 5,000 gallons (668 cf) | H32: 58.8
A33: Beaufort County - District IIIWaterInside | B33: Beaufort County - District III | C33: Water | D33: Inside | E33: 1.29 | F33: 22467 | G33: 5,000 gallons (668 cf) | H33: 58.8
A34: Beaufort County - District IVWaterInside | B34: Beaufort County - District IV | C34: Water | D34: Inside | E34: 1.29 | F34: 290 | G34: 5,000 gallons (668 cf) | H34: 58.8
A35: Beaufort County - District VWaterInside | B35: Beaufort County - District V | C35: Water | D35: Inside | E35: 1.29 | F35: 22467 | G35: 5,000 gallons (668 cf) | H35: 58.8
A36: Beaufort Co WD VIWaterInside | B36: Beaufort Co WD VI | C36: Water | D36: Inside | E36: 1.29 | F36: 2565 | G36: 5,000 gallons (668 cf) | H36: 58.8
A37: Beech MountainWaterInside | B37: Beech Mountain | C37: Water | D37: Inside | E37: 1.34 | F37: 2468 | G37: 5,000 gallons (668 cf) | H37: 54.96
A38: BelhavenWaterInside | B38: Belhaven | C38: Water | D38: Inside | E38: 1.09 | F38: 1960 | G38: 5,000 gallons (668 cf) | H38: 65.34
A39: Bell Arthur WCWaterInside | B39: Bell Arthur WC | C39: Water | D39: Inside | F39: 10635 | G39: 5,000 gallons (668 cf) | H39: 51.47
A40: BelmontWaterInside | B40: Belmont | C40: Water | D40: Inside | E40: 0.94 | F40: 15010 | G40: 5,000 gallons (668 cf) | H40: 37.08
A41: BensonWaterInside | B41: Benson | C41: Water | D41: Inside | E41: 0.9 | F41: 4259 | G41: 5,000 gallons (668 cf) | H41: 39.1
A42: Bertie County RWSWaterInside | B42: Bertie County RWS | C42: Water | D42: Inside | E42: 1.28 | F42: 12893 | G42: 5,000 gallons (668 cf) | H42: 44
A43: Bessemer CityWaterInside | B43: Bessemer City | C43: Water | D43: Inside | E43: 0.83 | F43: 5500 | G43: 5,000 gallons (668 cf) | H43: 32.15
A44: BeulavilleWaterInside | B44: Beulaville | C44: Water | D44: Inside | E44: 1.02 | F44: 1326 | G44: 5,000 gallons (668 cf) | H44: 37.75
A45: Biltmore ForestWaterInside | B45: Biltmore Forest | C45: Water | D45: Inside | E45: 0.84 | F45: 1356 | G45: 5,000 gallons (668 cf) | H45: 49.68
A46: BiscoeWaterInside | B46: Biscoe | C46: Water | D46: Inside | E46: 0.96 | F46: 2319 | G46: 5,000 gallons (668 cf) | H46: 28.5
A47: Black CreekWaterInside | B47: Black Creek | C47: Water | D47: Inside | F47: 1795 | G47: 5,000 gallons (668 cf) | H47: 30.55
A48: Bladen CountyWaterInside | B48: Bladen County | C48: Water | D48: Inside | E48: 0.97 | F48: 15903 | G48: 5,000 gallons (668 cf) | H48: 34
A49: BladenboroWaterInside | B49: Bladenboro | C49: Water | D49: Inside | E49: 0.96 | F49: 1648 | G49: 5,000 gallons (668 cf) | H49: 27.52
A50: Blowing RockWaterInside | B50: Blowing Rock | C50: Water | D50: Inside | E50: 1.12 | F50: 1637 | G50: 5,000 gallons (668 cf) | H50: 52.53
A51: BoardmanWaterInside | B51: Boardman | C51: Water | D51: Inside | E51: 0.39 | F51: 165 | G51: 5,000 gallons (668 cf) | H51: 30
A52: Bogue Banks Water CorpWaterInside | B52: Bogue Banks Water Corp | C52: Water | D52: Inside | F52: 4995 | G52: 5,000 gallons (668 cf) | H52: 32.02
A53: Boiling SpringsWaterInside | B53: Boiling Springs | C53: Water | D53: Inside | E53: 1.05 | F53: 4769 | G53: 5,000 gallons (668 cf) | H53: 37.41
A54: BoltonWaterInside | B54: Bolton | C54: Water | D54: Inside | E54: 0.51 | F54: 681 | G54: 5,000 gallons (668 cf) | H54: 28.8
A55: BooneWaterInside | B55: Boone | C55: Water | D55: Inside | E55: 1.13 | F55: 19667 | G55: 5,000 gallons (668 cf) | H55: 37.95
A56: BoonvilleWaterInside | B56: Boonville | C56: Water | D56: Inside | E56: 1.08 | F56: 1798 | G56: 5,000 gallons (668 cf) | H56: 47.7
A57: BosticWaterInside | B57: Bostic | C57: Water | D57: Inside | E57: 1.6 | F57: 850 | G57: 5,000 gallons (668 cf) | H57: 44
A58: Brentwood Water CorporationWaterInside | B58: Brentwood Water Corporation | C58: Water | D58: Inside | F58: 10489 | G58: 5,000 gallons (668 cf) | H58: 37.43
A59: BrevardWaterInside | B59: Brevard | C59: Water | D59: Inside | E59: 1.13 | F59: 10686 | G59: 5,000 gallons (668 cf) | H59: 57.5
A60: Broad River Water AuthorityWaterInside | B60: Broad River Water Authority | C60: Water | D60: Inside | E60: 1.39 | F60: 17093 | G60: 5,000 gallons (668 cf) | H60: 51.2
A61: BroadwayWaterInside | B61: Broadway | C61: Water | D61: Inside | E61: 0.83 | F61: 1783 | G61: 5,000 gallons (668 cf) | H61: 24.7
A62: Broadway Water Association. Inc.WaterInside | B62: Broadway Water Association. Inc. | C62: Water | D62: Inside | F62: 3556 | G62: 5,000 gallons (668 cf) | H62: 28.35
A63: Brunswick CountyWaterInside | B63: Brunswick County | C63: Water | D63: Inside | E63: 1.78 | F63: 113410 | G63: 5,000 gallons (668 cf) | H63: 36.75
A64: Brunswick Regional WSDWaterInside | B64: Brunswick Regional WSD | C64: Water | D64: Inside | E64: 1.64 | F64: 36142 | G64: 5,000 gallons (668 cf) | H64: 30.5
A65: Bryson CityWaterInside | B65: Bryson City | C65: Water | D65: Inside | E65: 1.01 | F65: 4222 | G65: 5,000 gallons (668 cf) | H65: 31.05
A66: BunnWaterInside | B66: Bunn | C66: Water | D66: Inside | E66: 0.98 | F66: 915 | G66: 5,000 gallons (668 cf) | H66: 45
A67: BurgawWaterInside | B67: Burgaw | C67: Water | D67: Inside | E67: 0.73 | F67: 4250 | G67: 5,000 gallons (668 cf) | H67: 26.25
A68: =B68&C68&D68 -> Burke CountyWaterInside | B68: Burke County | C68: Water | D68: Inside | E68: 0.89 | F68: 7001 | G68: 5,000 gallons (668 cf) | H68: 55
A69: BurlingtonWaterInside | B69: Burlington | C69: Water | D69: Inside | E69: 1.2 | F69: 56691 | G69: 5,000 gallons (668 cf) | H69: 22.7
A70: BurnsvilleWaterInside | B70: Burnsville | C70: Water | D70: Inside | E70: 0.96 | F70: 4069 | G70: 5,000 gallons (668 cf) | H70: 39.2
A71: Caldwell CountyWaterInside | B71: Caldwell County | C71: Water | D71: Inside | E71: 1.22 | F71: 24074 | G71: 5,000 gallons (668 cf) | H71: 34.71
A72: CalypsoWaterInside | B72: Calypso | C72: Water | D72: Inside | E72: 1.14 | F72: 660 | G72: 5,000 gallons (668 cf) | H72: 37.5
A73: CameronWaterInside | B73: Cameron | C73: Water | D73: Inside | E73: 0.73 | F73: 490 | G73: 5,000 gallons (668 cf) | H73: 43
A74: CandorWaterInside | B74: Candor | C74: Water | D74: Inside | E74: 1.06 | F74: 875 | G74: 5,000 gallons (668 cf) | H74: 44.75
A75: CantonWaterInside | B75: Canton | C75: Water | D75: Inside | E75: 1.16 | F75: 7799 | G75: 5,000 gallons (668 cf) | H75: 22.76
A76: Cape Fear Public Utility Authority - WilmingtonWaterInside | B76: Cape Fear Public Utility Authority - Wilmington | C76: Water | D76: Inside | E76: 1.12 | F76: 190501 | G76: 5,000 gallons (668 cf) | H76: 39.91
A77: Carolina BeachWaterInside | B77: Carolina Beach | C77: Water | D77: Inside | E77: 1.37 | F77: 12294 | G77: 5,000 gallons (668 cf) | H77: 34.62
A78: Carolina Water ServiceWaterInside | B78: Carolina Water Service | C78: Water | D78: Inside | F78: 58130 | G78: 5,000 gallons (668 cf) | H78: 83.08
A79: Carteret CountyWaterInside | B79: Carteret County | C79: Water | D79: Inside | E79: 1.09 | F79: 3021 | G79: 5,000 gallons (668 cf) | H79: 80.65
A80: Carteret County - Merrimon SystemWaterInside | B80: Carteret County - Merrimon System | C80: Water | D80: Inside | E80: 1.09 | F80: 71 | G80: 5,000 gallons (668 cf) | H80: 63.8
A81: CarthageWaterInside | B81: Carthage | C81: Water | D81: Inside | E81: 0.9 | F81: 3609 | G81: 5,000 gallons (668 cf) | H81: 43
A82: CaryWaterInside | B82: Cary | C82: Water | D82: Inside | E82: 1.21 | F82: 212000 | G82: 5,000 gallons (668 cf) | H82: 28.57
A83: Catawba CountyWaterInside | B83: Catawba County | C83: Water | D83: Inside | F83: 3089 | G83: 5,000 gallons (668 cf) | H83: 54.22
A84: Cerro GordoWaterInside | B84: Cerro Gordo | C84: Water | D84: Inside | E84: 0.47 | F84: 231 | G84: 5,000 gallons (668 cf) | H84: 24
A85: ChadbournWaterInside | B85: Chadbourn | C85: Water | D85: Inside | E85: 0.88 | F85: 2370 | G85: 5,000 gallons (668 cf) | H85: 42.88
A86: Charlotte WaterWaterInside | B86: Charlotte Water | C86: Water | D86: Inside | E86: 1.16 | F86: 1122573 | G86: 5,000 gallons (668 cf) | H86: 19.89
A87: Chatham CountyWaterInside | B87: Chatham County | C87: Water | D87: Inside | E87: 1.53 | F87: 26680 | G87: 5,000 gallons (668 cf) | H87: 50
A88: CherryvilleWaterInside | B88: Cherryville | C88: Water | D88: Inside | E88: 1.04 | F88: 6353 | G88: 5,000 gallons (668 cf) | H88: 43
A89: Chimney Rock Water WorksWaterInside | B89: Chimney Rock Water Works | C89: Water | D89: Inside | E89: 0.62 | F89: 366 | G89: 5,000 gallons (668 cf) | H89: 31.25
A90: Chinquapin Water AssociationWaterInside | B90: Chinquapin Water Association | C90: Water | D90: Inside | F90: 4686 | G90: 5,000 gallons (668 cf) | H90: 31.25
A91: ChocowinityWaterInside | B91: Chocowinity | C91: Water | D91: Inside | E91: 0.88 | F91: 2565 | G91: 5,000 gallons (668 cf) | H91: 43.5
A92: Chowan CountyWaterInside | B92: Chowan County | C92: Water | D92: Inside | E92: 0.98 | F92: 10762 | G92: 5,000 gallons (668 cf) | H92: 35
A93: ClaremontWaterInside | B93: Claremont | C93: Water | D93: Inside | E93: 1.19 | F93: 2525 | G93: 5,000 gallons (668 cf) | H93: 33.59
A94: ClarktonWaterInside | B94: Clarkton | C94: Water | D94: Inside | E94: 1.02 | F94: 1500 | G94: 5,000 gallons (668 cf) | H94: 28.75
A95: Clay County Water and Sewer DistrictWaterInside | B95: Clay County Water and Sewer District | C95: Water | D95: Inside | E95: 0.74 | F95: 1870 | G95: 5,000 gallons (668 cf) | H95: 24.35
A96: ClaytonWaterInside | B96: Clayton | C96: Water | D96: Inside | E96: 1.09 | F96: 29967 | G96: 5,000 gallons (668 cf) | H96: 45.5
A97: ClevelandWaterInside | B97: Cleveland | C97: Water | D97: Inside | E97: 1.09 | F97: 872 | G97: 5,000 gallons (668 cf) | H97: 32.38
A98: Cleveland County WaterWaterInside | B98: Cleveland County Water | C98: Water | D98: Inside | E98: 1.03 | F98: 54978 | G98: 5,000 gallons (668 cf) | H98: 31.76
A99: ClintonWaterInside | B99: Clinton | C99: Water | D99: Inside | E99: 1.03 | F99: 12459 | G99: 5,000 gallons (668 cf) | H99: 22.75
A100: ClydeWaterInside | B100: Clyde | C100: Water | D100: Inside | E100: 1 | F100: 3264 | G100: 5,000 gallons (668 cf) | H100: 40.82
A101: CoatsWaterInside | B101: Coats | C101: Water | D101: Inside | E101: 1.13 | F101: 2831 | G101: 5,000 gallons (668 cf) | H101: 32.75
A102: ColumbiaWaterInside | B102: Columbia | C102: Water | D102: Inside | E102: 0.59 | F102: 891 | G102: 5,000 gallons (668 cf) | H102: 36.22
A103: ColumbusWaterInside | B103: Columbus | C103: Water | D103: Inside | E103: 1.2 | F103: 2436 | G103: 5,000 gallons (668 cf) | H103: 31.05
A104: Columbus CountyWaterInside | B104: Columbus County | C104: Water | D104: Inside | E104: 1.21 | F104: 14576 | G104: 5,000 gallons (668 cf) | H104: 49.05
A105: ConcordWaterInside | B105: Concord | C105: Water | D105: Inside | E105: 1.17 | F105: 116845 | G105: 5,000 gallons (668 cf) | H105: 31.39
A106: Concord Community Water SystemWaterInside | B106: Concord Community Water System | C106: Water | D106: Inside | F106: 1867 | G106: 5,000 gallons (668 cf) | H106: 39
A107: Conetoe Community Water AssociationWaterInside | B107: Conetoe Community Water Association | C107: Water | D107: Inside | F107: 990 | G107: 5,000 gallons (668 cf) | H107: 31
A108: ConoverWaterInside | B108: Conover | C108: Water | D108: Inside | E108: 1.23 | F108: 15230 | G108: 5,000 gallons (668 cf) | H108: 26.54
A109: ConwayWaterInside | B109: Conway | C109: Water | D109: Inside | E109: 0.94 | F109: 887 | G109: 5,000 gallons (668 cf) | H109: 20.75
A110: Cove CityWaterInside | B110: Cove City | C110: Water | D110: Inside | F110: 440 | G110: 5,000 gallons (668 cf) | H110: 61
A111: Craven CountyWaterInside | B111: Craven County | C111: Water | D111: Inside | E111: 1.04 | F111: 36830 | G111: 5,000 gallons (668 cf) | H111: 21
A112: CreswellWaterInside | B112: Creswell | C112: Water | D112: Inside | E112: 0.77 | F112: 482 | G112: 5,000 gallons (668 cf) | H112: 79.1
A113: CrossnoreWaterInside | B113: Crossnore | C113: Water | D113: Inside | E113: 0.8 | F113: 195 | G113: 5,000 gallons (668 cf) | H113: 24
A114: Cumberland County - Kelly Hills DistrictWaterInside | B114: Cumberland County - Kelly Hills District | C114: Water | D114: Inside | E114: 0.84 | F114: 109 | G114: 5,000 gallons (668 cf) | H114: 66.58
A115: Cumberland County - SouthpointWaterInside | B115: Cumberland County - Southpoint | C115: Water | D115: Inside | E115: 0.84 | F115: 124 | G115: 5,000 gallons (668 cf) | H115: 60.44
A116: Currituck County - Mainland Water DepartmentWaterInside | B116: Currituck County - Mainland Water Department | C116: Water | D116: Inside | E116: 1.3 | F116: 17430 | G116: 5,000 gallons (668 cf) | H116: 43.3
A117: Currituck County - Ocean Sands Water-Sewer DistrictWaterInside | B117: Currituck County - Ocean Sands Water-Sewer District | C117: Water | D117: Inside | E117: 1.3 | F117: 2600 | G117: 5,000 gallons (668 cf) | H117: 44.1
A118: Currituck County - Southern Outer BanksWaterInside | B118: Currituck County - Southern Outer Banks | C118: Water | D118: Inside | E118: 1.3 | F118: 8209 | G118: 5,000 gallons (668 cf) | H118: 44.1
A119: DallasWaterInside | B119: Dallas | C119: Water | D119: Inside | E119: 1.1 | F119: 7864 | G119: 5,000 gallons (668 cf) | H119: 38.45
A120: Dan River Water Inc.WaterInside | B120: Dan River Water Inc. | C120: Water | D120: Inside | F120: 11890 | G120: 5,000 gallons (668 cf) | H120: 46.55
A121: Dare CountyWaterInside | B121: Dare County | C121: Water | D121: Inside | E121: 1.12 | F121: 25135 | G121: 5,000 gallons (668 cf) | H121: 34.34
A122: Davie County - MocksvilleWaterInside | B122: Davie County - Mocksville | C122: Water | D122: Inside | E122: 1.25 | F122: 29947 | G122: 5,000 gallons (668 cf) | H122: 153.39
A123: Deep Run Water CorpWaterInside | B123: Deep Run Water Corp | C123: Water | D123: Inside | F123: 13332 | G123: 5,000 gallons (668 cf) | H123: 40
A124: DentonWaterInside | B124: Denton | C124: Water | D124: Inside | E124: 1.1 | F124: 3080 | G124: 5,000 gallons (668 cf) | H124: 58.29
A125: DobsonWaterInside | B125: Dobson | C125: Water | D125: Inside | E125: 0.87 | F125: 2615 | G125: 5,000 gallons (668 cf) | H125: 43.75
A126: DoverWaterInside | B126: Dover | C126: Water | D126: Inside | E126: 0.48 | F126: 425 | G126: 5,000 gallons (668 cf) | H126: 33.75
A127: DrexelWaterInside | B127: Drexel | C127: Water | D127: Inside | E127: 1.08 | F127: 2990 | G127: 5,000 gallons (668 cf) | H127: 46.9
A128: DublinWaterInside | B128: Dublin | C128: Water | D128: Inside | E128: 0.91 | F128: 447 | G128: 5,000 gallons (668 cf) | H128: 39.38
A129: DunnWaterInside | B129: Dunn | C129: Water | D129: Inside | E129: 1.06 | F129: 12189 | G129: 5,000 gallons (668 cf) | H129: 32.7
A130: Duplin CoWaterInside | B130: Duplin Co | C130: Water | D130: Inside | E130: 1.27 | F130: 18542 | G130: 5,000 gallons (668 cf) | H130: 33.75
A131: DurhamWaterInside | B131: Durham | C131: Water | D131: Inside | E131: 1.22 | F131: 309355 | G131: 5,000 gallons (668 cf) | H131: 28.84
A132: =B132&C132&D132 -> East ArcadiaWaterInside | B132: East Arcadia | C132: Water | D132: Inside | E132: 0.95 | F132: 609 | G132: 5,000 gallons (668 cf) | H132: 24
A133: East BendWaterInside | B133: East Bend | C133: Water | D133: Inside | E133: 1.1 | F133: 1466 | G133: 5,000 gallons (668 cf) | H133: 90.64
A134: East SpencerWaterInside | B134: East Spencer | C134: Water | D134: Inside | E134: 1.05 | F134: 1550 | G134: 5,000 gallons (668 cf) | H134: 58.15
A135: Eastern Pines Water CorporationWaterInside | B135: Eastern Pines Water Corporation | C135: Water | D135: Inside | F135: 22230 | G135: 5,000 gallons (668 cf) | H135: 42.5
A136: Eastover Sanitary DistrictWaterInside | B136: Eastover Sanitary District | C136: Water | D136: Inside | F136: 7571 | G136: 5,000 gallons (668 cf) | H136: 51.8
A137: EdenWaterInside | B137: Eden | C137: Water | D137: Inside | E137: 0.91 | F137: 15023 | G137: 5,000 gallons (668 cf) | H137: 40.8
A138: EdentonWaterInside | B138: Edenton | C138: Water | D138: Inside | E138: 1.05 | F138: 5500 | G138: 5,000 gallons (668 cf) | H138: 50.61
A139: Edgecombe Co WSDWaterInside | B139: Edgecombe Co WSD | C139: Water | D139: Inside | E139: 1.07 | F139: 12845 | G139: 5,000 gallons (668 cf) | H139: 65.25
A140: Elizabeth CityWaterInside | B140: Elizabeth City | C140: Water | D140: Inside | E140: 1.08 | F140: 19723 | G140: 5,000 gallons (668 cf) | H140: 50.95
A141: ElizabethtownWaterInside | B141: Elizabethtown | C141: Water | D141: Inside | E141: 0.85 | F141: 5311 | G141: 5,000 gallons (668 cf) | H141: 25.28
A142: Elk ParkWaterInside | B142: Elk Park | C142: Water | D142: Inside | E142: 0.75 | F142: 495 | G142: 5,000 gallons (668 cf) | H142: 24.5
A143: ElkinWaterInside | B143: Elkin | C143: Water | D143: Inside | E143: 1.51 | F143: 4120 | G143: 5,000 gallons (668 cf) | H143: 37.5
A144: EllenboroWaterInside | B144: Ellenboro | C144: Water | D144: Inside | E144: 1.04 | F144: 2258 | G144: 5,000 gallons (668 cf) | H144: 38.75
A145: EllerbeWaterInside | B145: Ellerbe | C145: Water | D145: Inside | E145: 0.76 | F145: 1640 | G145: 5,000 gallons (668 cf) | H145: 23.68
A146: Elm CityWaterInside | B146: Elm City | C146: Water | D146: Inside | E146: 0.9 | F146: 1720 | G146: 5,000 gallons (668 cf) | H146: 40.24
A147: ElonWaterInside | B147: Elon | C147: Water | D147: Inside | E147: 1.33 | F147: 12752 | G147: 5,000 gallons (668 cf) | H147: 35.64
A148: Energy United WaterWaterInside | B148: Energy United Water | C148: Water | D148: Inside | F148: 13445 | G148: 5,000 gallons (668 cf) | H148: 38
A149: Enfield Water SystemWaterInside | B149: Enfield Water System | C149: Water | D149: Inside | E149: 1.02 | F149: 2206 | G149: 5,000 gallons (668 cf) | H149: 58
A150: EverettsWaterInside | B150: Everetts | C150: Water | D150: Inside | E150: 0.57 | F150: 419 | G150: 5,000 gallons (668 cf) | H150: 84
A151: Fair BluffWaterInside | B151: Fair Bluff | C151: Water | D151: Inside | E151: 0.83 | F151: 930 | G151: 5,000 gallons (668 cf) | H151: 22.5
A152: FairmontWaterInside | B152: Fairmont | C152: Water | D152: Inside | E152: 0.84 | F152: 2837 | G152: 5,000 gallons (668 cf) | H152: 66.56
A153: FaisonWaterInside | B153: Faison | C153: Water | D153: Inside | E153: 0.72 | F153: 1410 | G153: 5,000 gallons (668 cf) | H153: 32.5
A154: FalconWaterInside | B154: Falcon | C154: Water | D154: Inside | E154: 0.87 | F154: 714 | G154: 5,000 gallons (668 cf) | H154: 30.14
A155: Fallston Water SystemWaterInside | B155: Fallston Water System | C155: Water | D155: Inside | E155: 0.74 | F155: 589 | G155: 5,000 gallons (668 cf) | H155: 29.4
A156: FarmvilleWaterInside | B156: Farmville | C156: Water | D156: Inside | E156: 1.11 | F156: 8458 | G156: 5,000 gallons (668 cf) | H156: 56.49
A157: FayettevilleWaterInside | B157: Fayetteville | C157: Water | D157: Inside | E157: 1.32 | F157: 213253 | G157: 5,000 gallons (668 cf) | H157: 31.75
A158: First Craven Sanitary DistrictWaterInside | B158: First Craven Sanitary District | C158: Water | D158: Inside | E158: 1.22 | F158: 6325 | G158: 5,000 gallons (668 cf) | H158: 36
A159: Fontana DamWaterInside | B159: Fontana Dam | C159: Water | D159: Inside | E159: 0.37 | F159: 950 | G159: 5,000 gallons (668 cf) | H159: 20
A160: Forest CityWaterInside | B160: Forest City | C160: Water | D160: Inside | E160: 1.01 | F160: 21366 | G160: 5,000 gallons (668 cf) | H160: 22.37
A161: Fork Township SDWaterInside | B161: Fork Township SD | C161: Water | D161: Inside | E161: 1.13 | F161: 11864 | G161: 5,000 gallons (668 cf) | H161: 40.4
A162: FountainWaterInside | B162: Fountain | C162: Water | D162: Inside | E162: 0.88 | F162: 427 | G162: 5,000 gallons (668 cf) | H162: 54.48
A163: Four OaksWaterInside | B163: Four Oaks | C163: Water | D163: Inside | E163: 1.15 | F163: 2776 | G163: 5,000 gallons (668 cf) | H163: 32.67
A164: Foxfire VillageWaterInside | B164: Foxfire Village | C164: Water | D164: Inside | E164: 1.59 | F164: 1782 | G164: 5,000 gallons (668 cf) | H164: 31.76
A165: FranklinWaterInside | B165: Franklin | C165: Water | D165: Inside | E165: 1.37 | F165: 9650 | G165: 5,000 gallons (668 cf) | H165: 34.95
A166: Franklin County Public UtilitiesWaterInside | B166: Franklin County Public Utilities | C166: Water | D166: Inside | E166: 1.45 | F166: 17689 | G166: 5,000 gallons (668 cf) | H166: 65.11
A167: FranklinvilleWaterInside | B167: Franklinville | C167: Water | D167: Inside | E167: 0.79 | F167: 1400 | G167: 5,000 gallons (668 cf) | H167: 57.5
A168: FremontWaterInside | B168: Fremont | C168: Water | D168: Inside | E168: 1.11 | F168: 1463 | G168: 5,000 gallons (668 cf) | H168: 52.77
A169: Fuquay-VarinaWaterInside | B169: Fuquay-Varina | C169: Water | D169: Inside | E169: 1.67 | F169: 39115 | G169: 5,000 gallons (668 cf) | H169: 39.64
A170: GarlandWaterInside | B170: Garland | C170: Water | D170: Inside | E170: 1.08 | F170: 625 | G170: 5,000 gallons (668 cf) | H170: 30.5
A171: Gates CoWaterInside | B171: Gates Co | C171: Water | D171: Inside | E171: 0.86 | F171: 11621 | G171: 5,000 gallons (668 cf) | H171: 25.5
A172: Gibson (Scotland Co - South WSD)WaterInside | B172: Gibson (Scotland Co - South WSD) | C172: Water | D172: Inside | E172: 0.56 | F172: 589 | G172: 5,000 gallons (668 cf) | H172: 28.63
A173: GibsonvilleWaterInside | B173: Gibsonville | C173: Water | D173: Inside | E173: 1.22 | F173: 7129 | G173: 5,000 gallons (668 cf) | H173: 24.8
A174: GodwinWaterInside | B174: Godwin | C174: Water | D174: Inside | E174: 1.36 | F174: 275 | G174: 5,000 gallons (668 cf) | H174: 53
A175: GoldsboroWaterInside | B175: Goldsboro | C175: Water | D175: Inside | E175: 1.16 | F175: 34959 | G175: 5,000 gallons (668 cf) | H175: 37.31
A176: Goldston Gulf SDWaterInside | B176: Goldston Gulf SD | C176: Water | D176: Inside | E176: 0.89 | F176: 1285 | G176: 5,000 gallons (668 cf) | H176: 55
A177: GrahamWaterInside | B177: Graham | C177: Water | D177: Inside | E177: 1.1 | F177: 17158 | G177: 5,000 gallons (668 cf) | H177: 23.33
A178: Granite FallsWaterInside | B178: Granite Falls | C178: Water | D178: Inside | E178: 0.89 | F178: 7318 | G178: 5,000 gallons (668 cf) | H178: 37.64
A179: Green LevelWaterInside | B179: Green Level | C179: Water | D179: Inside | E179: 1.15 | F179: 2450 | G179: 5,000 gallons (668 cf) | H179: 41.67
A180: Greene County RWSWaterInside | B180: Greene County RWS | C180: Water | D180: Inside | E180: 0.85 | F180: 10183 | G180: 5,000 gallons (668 cf) | H180: 30.49
A181: GreeneversWaterInside | B181: Greenevers | C181: Water | D181: Inside | E181: 1.09 | F181: 1390 | G181: 5,000 gallons (668 cf) | H181: 28.85
A182: GreensboroWaterInside | B182: Greensboro | C182: Water | D182: Inside | E182: 1.29 | F182: 318057 | G182: 5,000 gallons (668 cf) | H182: 23
A183: Greenville Utilities CommissionWaterInside | B183: Greenville Utilities Commission | C183: Water | D183: Inside | E183: 1.14 | F183: 103140 | G183: 5,000 gallons (668 cf) | H183: 32.84
A184: GriftonWaterInside | B184: Grifton | C184: Water | D184: Inside | E184: 0.91 | F184: 2982 | G184: 5,000 gallons (668 cf) | H184: 42.9
A185: GrimeslandWaterInside | B185: Grimesland | C185: Water | D185: Inside | E185: 0.65 | F185: 610 | G185: 5,000 gallons (668 cf) | H185: 42.15
A186: GroverWaterInside | B186: Grover | C186: Water | D186: Inside | E186: 0.75 | F186: 690 | G186: 5,000 gallons (668 cf) | H186: 34.08
A187: HalifaxWaterInside | B187: Halifax | C187: Water | D187: Inside | F187: 20250 | G187: 5,000 gallons (668 cf) | H187: 63.5
A188: Halifax CountyWaterInside | B188: Halifax County | C188: Water | D188: Inside | E188: 1.02 | F188: 20250 | G188: 5,000 gallons (668 cf) | H188: 47.25
A189: HamiltonWaterInside | B189: Hamilton | C189: Water | D189: Inside | E189: 0.67 | F189: 408 | G189: 5,000 gallons (668 cf) | H189: 55.15
A190: Hamlet Water SystemWaterInside | B190: Hamlet Water System | C190: Water | D190: Inside | E190: 0.87 | F190: 10289 | G190: 5,000 gallons (668 cf) | H190: 30.5
A191: Handy Sanitary DistrictWaterInside | B191: Handy Sanitary District | C191: Water | D191: Inside | E191: 1.2 | F191: 7899 | G191: 5,000 gallons (668 cf) | H191: 41
A192: Harkers Island WSDWaterInside | B192: Harkers Island WSD | C192: Water | D192: Inside | E192: 1.17 | F192: 2358 | G192: 5,000 gallons (668 cf) | H192: 40.25
A193: Harnett Regional Water SystemWaterInside | B193: Harnett Regional Water System | C193: Water | D193: Inside | E193: 1.28 | F193: 107373 | G193: 5,000 gallons (668 cf) | H193: 36.5
A194: Harrells Water CorporationWaterInside | B194: Harrells Water Corporation | C194: Water | D194: Inside | F194: 1633 | G194: 5,000 gallons (668 cf) | H194: 28
A195: HarrellsvilleWaterInside | B195: Harrellsville | C195: Water | D195: Inside | E195: 1.06 | F195: 843 | G195: 5,000 gallons (668 cf) | H195: 35
A196: =B196&C196&D196 -> HarrisburgWaterInside | B196: Harrisburg | C196: Water | D196: Inside | E196: 1.21 | F196: 18115 | G196: 5,000 gallons (668 cf) | H196: 33.89
A197: HavelockWaterInside | B197: Havelock | C197: Water | D197: Inside | E197: 1.11 | F197: 14550 | G197: 5,000 gallons (668 cf) | H197: 28.96
A198: Haw RiverWaterInside | B198: Haw River | C198: Water | D198: Inside | E198: 0.87 | F198: 2450 | G198: 5,000 gallons (668 cf) | H198: 39.27
A199: HendersonWaterInside | B199: Henderson | C199: Water | D199: Inside | E199: 1.22 | F199: 14998 | G199: 5,000 gallons (668 cf) | H199: 16.6
A200: HendersonvilleWaterInside | B200: Hendersonville | C200: Water | D200: Inside | E200: 0.98 | F200: 78298 | G200: 5,000 gallons (668 cf) | H200: 30.72
... 303 more rows

Sheet DWR_LWSP_Data_Systems (hidden)
A1: PWSID | B1: name | C1: county | D1: basin | E1: active | F1: ibt | H1: Inside Water Rate first 5k Gal.
A2: 98-76-543 | B2: AAA-1 Water Authority (test) | C2: Alamance | D2: Albemarle Sound (12-1) | F2: No | H2: =VLOOKUP(B2&"Water"&"Inside",'EFC Table'!$A$3:$H$502,8,FALSE) -> 
A3: 03-63-020 | B3: Aberdeen | C3: Moore | D3: Lumber River (09-1) | E3: Yes | F3: No | H3: =VLOOKUP(B3&"Water"&"Inside",'EFC Table'!$A$3:$H$502,8,FALSE) -> 24.55
A4: 04-46-010 | B4: Ahoskie | C4: Hertford | D4: Chowan River (04-1) | E4: Yes | F4: No | H4: =VLOOKUP(B4&"Water"&"Inside",'EFC Table'!$A$3:$H$502,8,FALSE) -> 40.58
A5: 02-01-035 | B5: Alamance | C5: Alamance | D5: Haw River (02-1) | E5: Yes | F5: No | H5: =VLOOKUP(B5&"Water"&"Inside",'EFC Table'!$A$3:$H$502,8,FALSE) -> 37.85
A6: 01-84-010 | B6: Albemarle | C6: Stanly | D6: Yadkin River (18-1) | E6: Yes | F6: < 0.100 MGD | H6: =VLOOKUP(B6&"Water"&"Inside",'EFC Table'!$A$3:$H$502,8,FALSE) -> 27.46
A7: 04-31-080 | B7: ALBERTSON WSD | C7: Duplin | D7: Northeast Cape Fear River (02-5) | E7: No | F7: No | H7: =VLOOKUP(B7&"Water"&"Inside",'EFC Table'!$A$3:$H$502,8,FALSE) -> 
A8: 01-02-020 | B8: Alexander County WD | C8: Alexander | D8: Catawba River (03-1) | E8: Yes | F8: No | H8: =VLOOKUP(B8&"Water"&"Inside",'EFC Table'!$A$3:$H$502,8,FALSE) -> 
A9: 01-20-020 | B9: Andrews | C9: Cherokee | D9: Hiwassee River (06-1) | E9: Yes | F9: No | H9: =VLOOKUP(B9&"Water"&"Inside",'EFC Table'!$A$3:$H$502,8,FALSE) -> 43
A10: 03-43-015 | B10: Angier | C10: Harnett | D10: Cape Fear River (02-3) | E10: Yes | F10: < 0.100 MGD | H10: =VLOOKUP(B10&"Water"&"Inside",'EFC Table'!$A$3:$H$502,8,FALSE) -> 31.77
A11: 03-04-010 | B11: Anson Co | C11: Anson | D11: Yadkin River (18-1) | E11: Yes | F11: < 0.100 MGD | H11: =VLOOKUP(B11&"Water"&"Inside",'EFC Table'!$A$3:$H$502,8,FALSE) -> 26.96
A12: 03-04-012 | B12: Ansonville | C12: Anson | D12: Yadkin River (18-1) | E12: Yes | F12: < 0.100 MGD | H12: =VLOOKUP(B12&"Water"&"Inside",'EFC Table'!$A$3:$H$502,8,FALSE) -> 31.04
A13: 03-92-045 | B13: Apex | C13: Wake | D13: Haw River (02-1) | E13: Yes | F13: < 0.100 MGD | H13: =VLOOKUP(B13&"Water"&"Inside",'EFC Table'!$A$3:$H$502,8,FALSE) -> 27.25
A14: 01-95-101 | B14: Appalachian State University | C14: Watauga | D14: New River (11-1) | E14: Yes | F14: No | H14: =VLOOKUP(B14&"Water"&"Inside",'EFC Table'!$A$3:$H$502,8,FALSE) -> 
A15: 04-65-226 | B15: APPLE VALLEY | C15: New Hanover | D15: Northeast Cape Fear River (02-5) | E15: No | F15: No | H15: =VLOOKUP(B15&"Water"&"Inside",'EFC Table'!$A$3:$H$502,8,FALSE) -> 
A16: 02-76-030 | B16: Archdale | C16: Randolph | D16: Deep River (02-2) | E16: Yes | F16: < 0.100 MGD | H16: =VLOOKUP(B16&"Water"&"Inside",'EFC Table'!$A$3:$H$502,8,FALSE) -> 32.35
A17: 02-99-030 | B17: ARLINGTON | C17: Yadkin | D17: Yadkin River (18-1) | E17: No | F17: No | H17: =VLOOKUP(B17&"Water"&"Inside",'EFC Table'!$A$3:$H$502,8,FALSE) -> 
A18: 02-76-010 | B18: Asheboro | C18: Randolph | D18: Deep River (02-2) | E18: Yes | F18: < 0.100 MGD | H18: =VLOOKUP(B18&"Water"&"Inside",'EFC Table'!$A$3:$H$502,8,FALSE) -> 31.5
A19: 01-11-010 | B19: Asheville | C19: Buncombe | D19: French Broad River (05-2) | E19: Yes | F19: No | H19: =VLOOKUP(B19&"Water"&"Inside",'EFC Table'!$A$3:$H$502,8,FALSE) -> 37.43
A20: 04-16-035 | B20: Atlantic Beach | C20: Carteret | D20: White Oak River (17-1) | E20: Yes | F20: No | H20: =VLOOKUP(B20&"Water"&"Inside",'EFC Table'!$A$3:$H$502,8,FALSE) -> 29.65
A21: 04-08-015 | B21: Aulander | C21: Bertie | D21: Chowan River (04-1) | E21: Yes | F21: No | H21: =VLOOKUP(B21&"Water"&"Inside",'EFC Table'!$A$3:$H$502,8,FALSE) -> 38.5
A22: 04-07-020 | B22: Aurora | C22: Beaufort | D22: Pamlico River & Sound (15-3) | E22: Yes | F22: No | H22: =VLOOKUP(B22&"Water"&"Inside",'EFC Table'!$A$3:$H$502,8,FALSE) -> 43.36
A23: 03-82-045 | B23: Autryville | C23: Sampson | D23: Cape Fear River (02-3) | E23: Yes | F23: No | H23: =VLOOKUP(B23&"Water"&"Inside",'EFC Table'!$A$3:$H$502,8,FALSE) -> 54.36
A24: 04-74-025 | B24: Ayden | C24: Pitt | D24: Contentnea Creek (10-2) | E24: Yes | F24: No | H24: =VLOOKUP(B24&"Water"&"Inside",'EFC Table'!$A$3:$H$502,8,FALSE) -> 53
A25: 03-62-120 | B25: Badin Shores Resort | C25: Montgomery | D25: Yadkin River (18-1) | E25: Yes | F25: No | H25: =VLOOKUP(B25&"Water"&"Inside",'EFC Table'!$A$3:$H$502,8,FALSE) -> 
A26: 04-64-035 | B26: Bailey | C26: Nash | D26: Contentnea Creek (10-2) | E26: Yes | F26: No | H26: =VLOOKUP(B26&"Water"&"Inside",'EFC Table'!$A$3:$H$502,8,FALSE) -> 40.55
A27: 01-61-015 | B27: Bakersville | C27: Mitchell | D27: Nolichucky River (05-1) | E27: Yes | F27: No | H27: =VLOOKUP(B27&"Water"&"Inside",'EFC Table'!$A$3:$H$502,8,FALSE) -> 25
A28: 04-10-130 | B28: Bald Head Island Utilities | C28: Brunswick | D28: Cape Fear River (02-3) | E28: Yes | F28: No | H28: =VLOOKUP(B28&"Water"&"Inside",'EFC Table'!$A$3:$H$502,8,FALSE) -> 61.49
A29: 01-06-015 | B29: Banner Elk | C29: Avery | D29: Watauga River (16-1) | E29: Yes | F29: No | H29: =VLOOKUP(B29&"Water"&"Inside",'EFC Table'!$A$3:$H$502,8,FALSE) -> 39.8
A30: 04-07-030 | B30: Bath | C30: Beaufort | D30: Pamlico River & Sound (15-3) | E30: Yes | F30: No | H30: =VLOOKUP(B30&"Water"&"Inside",'EFC Table'!$A$3:$H$502,8,FALSE) -> 63.5
A31: 01-14-025 | B31: Baton Water Corporation | C31: Caldwell | D31: Catawba River (03-1) | E31: Yes | F31: No | H31: =VLOOKUP(B31&"Water"&"Inside",'EFC Table'!$A$3:$H$502,8,FALSE) -> 32
A32: 03-92-373 | B32: Bayleaf Master | C32: Wake | D32: Neuse River (10-1) | E32: Yes | F32: No | H32: =VLOOKUP(B32&"Water"&"Inside",'EFC Table'!$A$3:$H$502,8,FALSE) -> 
A33: 04-59-035 | B33: Bear Grass | C33: Martin | D33: Tar River (15-1) | E33: No | F33: No | H33: =VLOOKUP(B33&"Water"&"Inside",'EFC Table'!$A$3:$H$502,8,FALSE) -> 
A34: 04-16-010 | B34: Beaufort | C34: Carteret | D34: White Oak River (17-1) | E34: Yes | F34: No | H34: =VLOOKUP(B34&"Water"&"Inside",'EFC Table'!$A$3:$H$502,8,FALSE) -> 35.72
A35: 04-07-035 | B35: Beaufort Co (Northside) | C35: Beaufort | D35: Pamlico River & Sound (15-3) | E35: Yes | F35: No | H35: =VLOOKUP(B35&"Water"&"Inside",'EFC Table'!$A$3:$H$502,8,FALSE) -> 58.8
A36: 04-07-040 | B36: Beaufort Co (Southside) | C36: Beaufort | D36: Pamlico River & Sound (15-3) | E36: Yes | F36: No | H36: =VLOOKUP(B36&"Water"&"Inside",'EFC Table'!$A$3:$H$502,8,FALSE) -> 58.8
A37: 04-07-612 | B37: Beaufort Co WD VI | C37: Beaufort | D37: Pamlico River & Sound (15-3) | E37: No | F37: No | H37: =VLOOKUP(B37&"Water"&"Inside",'EFC Table'!$A$3:$H$502,8,FALSE) -> 58.8
A38: 04-07-999 | B38: BEAUFORT CO WD VI | C38: Beaufort | D38: Neuse River (10-1) | E38: No | F38: No | H38: =VLOOKUP(B38&"Water"&"Inside",'EFC Table'!$A$3:$H$502,8,FALSE) -> 58.8
A39: 01-95-104 | B39: Beech Mountain | C39: Watauga | D39: Watauga River (16-1) | E39: Yes | F39: No | H39: =VLOOKUP(B39&"Water"&"Inside",'EFC Table'!$A$3:$H$502,8,FALSE) -> 54.96
A40: 04-07-015 | B40: Belhaven | C40: Beaufort | D40: Pamlico River & Sound (15-3) | E40: Yes | F40: No | H40: =VLOOKUP(B40&"Water"&"Inside",'EFC Table'!$A$3:$H$502,8,FALSE) -> 65.34
A41: 04-74-045 | B41: Bell Arthur WC | C41: Pitt | D41: Contentnea Creek (10-2) | E41: Yes | F41: No | H41: =VLOOKUP(B41&"Water"&"Inside",'EFC Table'!$A$3:$H$502,8,FALSE) -> 51.47
A42: 01-36-015 | B42: Belmont | C42: Gaston | D42: Catawba River (03-1) | E42: Yes | F42: < 0.100 MGD | H42: =VLOOKUP(B42&"Water"&"Inside",'EFC Table'!$A$3:$H$502,8,FALSE) -> 37.08
A43: 04-71-111 | B43: Belvedere | C43: Pender | D43: New River (02-6) | E43: Yes | F43: No | H43: =VLOOKUP(B43&"Water"&"Inside",'EFC Table'!$A$3:$H$502,8,FALSE) -> 
A44: 03-51-025 | B44: Benson | C44: Johnston | D44: Cape Fear River (02-3) | E44: Yes | F44: < 0.100 MGD | H44: =VLOOKUP(B44&"Water"&"Inside",'EFC Table'!$A$3:$H$502,8,FALSE) -> 39.1
A45: 04-08-085 | B45: Bertie County RWS | C45: Bertie | D45: Chowan River (04-1) | E45: Yes | F45: No | H45: =VLOOKUP(B45&"Water"&"Inside",'EFC Table'!$A$3:$H$502,8,FALSE) -> 44
A46: 01-36-025 | B46: Bessemer City | C46: Gaston | D46: Catawba River (03-1) | E46: Yes | F46: < 0.100 MGD | H46: =VLOOKUP(B46&"Water"&"Inside",'EFC Table'!$A$3:$H$502,8,FALSE) -> 32.15
A47: 04-74-030 | B47: Bethel | C47: Pitt | D47: Tar River (15-1) | E47: No | F47: No | H47: =VLOOKUP(B47&"Water"&"Inside",'EFC Table'!$A$3:$H$502,8,FALSE) -> 
A48: 01-02-035 | B48: Bethlehem WD | C48: Alexander | D48: Catawba River (03-1) | E48: No | F48: No | H48: =VLOOKUP(B48&"Water"&"Inside",'EFC Table'!$A$3:$H$502,8,FALSE) -> 
A49: 04-31-020 | B49: Beulaville | C49: Duplin | D49: Northeast Cape Fear River (02-5) | E49: Yes | F49: No | H49: =VLOOKUP(B49&"Water"&"Inside",'EFC Table'!$A$3:$H$502,8,FALSE) -> 37.75
A50: 20-84-006 | B50: Big Lick Road | C50: Stanly | D50: Rocky River (18-4) | E50: Yes | F50: No | H50: =VLOOKUP(B50&"Water"&"Inside",'EFC Table'!$A$3:$H$502,8,FALSE) -> 
A51: 01-11-030 | B51: Biltmore Forest | C51: Buncombe | D51: French Broad River (05-2) | E51: Yes | F51: No | H51: =VLOOKUP(B51&"Water"&"Inside",'EFC Table'!$A$3:$H$502,8,FALSE) -> 49.68
A52: 03-62-035 | B52: Biscoe | C52: Montgomery | D52: Yadkin River (18-1) | E52: Yes | F52: < 0.100 MGD | H52: =VLOOKUP(B52&"Water"&"Inside",'EFC Table'!$A$3:$H$502,8,FALSE) -> 28.5
A53: 04-98-035 | B53: Black Creek | C53: Wilson | D53: Contentnea Creek (10-2) | E53: Yes | F53: No | H53: =VLOOKUP(B53&"Water"&"Inside",'EFC Table'!$A$3:$H$502,8,FALSE) -> 30.55
A54: 01-11-020 | B54: Black Mountain | C54: Buncombe | D54: French Broad River (05-2) | E54: Yes | F54: No | H54: =VLOOKUP(B54&"Water"&"Inside",'EFC Table'!$A$3:$H$502,8,FALSE) -> 
A55: 50-09-012 | B55: Bladen Bluffs - LCFWSA | C55: Bladen | D55: Cape Fear River (02-3) | E55: Yes | F55: No | H55: =VLOOKUP(B55&"Water"&"Inside",'EFC Table'!$A$3:$H$502,8,FALSE) -> 
A56: 03-09-060 | B56: Bladen Co WD (East Bladen) | C56: Bladen | D56: Cape Fear River (02-3) | E56: Yes | F56: No | H56: 34
A57: 03-09-055 | B57: Bladen Co WD (West Bladen) | C57: Bladen | D57: Cape Fear River (02-3) | E57: Yes | F57: No | H57: 34
A58: 03-09-065 | B58: BLADEN CO WD - EAST ARCADIA | C58: Bladen | D58: Waccamaw River (09-3) | E58: No | F58: No | H58: 34
A59: 03-09-035 | B59: BLADEN CO WD - WHITE OAK | C59: Bladen | D59: Cape Fear River (02-3) | E59: No | F59: No | H59: 34
A60: 03-09-040 | B60: Bladen County Water District (Tar Heel) | C60: Bladen | D60: Cape Fear River (02-3) | E60: No | F60: No | H60: 34
A61: 03-09-015 | B61: Bladenboro | C61: Bladen | D61: Lumber River (09-1) | E61: Yes | F61: No | H61: =VLOOKUP(B61&"Water"&"Inside",'EFC Table'!$A$3:$H$502,8,FALSE) -> 27.52
A62: 01-95-020 | B62: Blowing Rock | C62: Watauga | D62: New River (11-1) | E62: Yes | F62: < 0.100 MGD | H62: =VLOOKUP(B62&"Water"&"Inside",'EFC Table'!$A$3:$H$502,8,FALSE) -> 52.53
A63: 01-97-030 | B63: Blue Ridge WA | C63: Wilkes | D63: Yadkin River (18-1) | E63: Yes | F63: No | H63: =VLOOKUP(B63&"Water"&"Inside",'EFC Table'!$A$3:$H$502,8,FALSE) -> 
A64: 04-24-075 | B64: Boardman | C64: Columbus | D64: Lumber River (09-1) | E64: Yes | F64: No | H64: =VLOOKUP(B64&"Water"&"Inside",'EFC Table'!$A$3:$H$502,8,FALSE) -> 30
A65: 04-16-028 | B65: Bogue Banks Water Corp | C65: Carteret | D65: White Oak River (17-1) | E65: Yes | F65: No | H65: =VLOOKUP(B65&"Water"&"Inside",'EFC Table'!$A$3:$H$502,8,FALSE) -> 32.02
A66: 04-10-998 | B66: Boiling Spring Lakes | C66: Brunswick | D66: Cape Fear River (02-3) | E66: No | F66: No | H66: =VLOOKUP(B66&"Water"&"Inside",'EFC Table'!$A$3:$H$502,8,FALSE) -> 
A67: 70-10-048 | B67: Boiling Spring Lakes | C67: Brunswick | D67: Cape Fear River (02-3) | E67: No | F67: No | H67: =VLOOKUP(B67&"Water"&"Inside",'EFC Table'!$A$3:$H$502,8,FALSE) -> 
A68: 01-23-025 | B68: Boiling Springs | C68: Cleveland | D68: Broad River (01-1) | E68: Yes | F68: No | H68: =VLOOKUP(B68&"Water"&"Inside",'EFC Table'!$A$3:$H$502,8,FALSE) -> 37.41
A69: 04-24-050 | B69: Bolton | C69: Columbus | D69: Waccamaw River (09-3) | E69: Yes | F69: No | H69: =VLOOKUP(B69&"Water"&"Inside",'EFC Table'!$A$3:$H$502,8,FALSE) -> 28.8
A70: 01-95-010 | B70: Boone | C70: Watauga | D70: New River (11-1) | E70: Yes | F70: No | H70: =VLOOKUP(B70&"Water"&"Inside",'EFC Table'!$A$3:$H$502,8,FALSE) -> 37.95
A71: 02-99-020 | B71: Boonville | C71: Yadkin | D71: Yadkin River (18-1) | E71: Yes | F71: No | H71: =VLOOKUP(B71&"Water"&"Inside",'EFC Table'!$A$3:$H$502,8,FALSE) -> 47.7
A72: 01-81-040 | B72: Bostic | C72: Rutherford | D72: Broad River (01-1) | E72: Yes | F72: No | H72: =VLOOKUP(B72&"Water"&"Inside",'EFC Table'!$A$3:$H$502,8,FALSE) -> 44
A73: 01-60-264 | B73: Bradfield Farms S/D | C73: Mecklenburg | D73: Rocky River (18-4) | E73: Yes | F73: No | H73: =VLOOKUP(B73&"Water"&"Inside",'EFC Table'!$A$3:$H$502,8,FALSE) -> 
A74: 50-43-001 | B74: Bragg Communities | C74: Harnett | D74: Cape Fear River (02-3) | E74: No | F74: No | H74: =VLOOKUP(B74&"Water"&"Inside",'EFC Table'!$A$3:$H$502,8,FALSE) -> 
A75: 04-16-163 | B75: Brandywine Bay | C75: Carteret | D75: White Oak River (17-1) | E75: No | F75: No | H75: =VLOOKUP(B75&"Water"&"Inside",'EFC Table'!$A$3:$H$502,8,FALSE) -> 
A76: 01-12-103 | B76: Brentwood-Highway 64 | C76: Burke | D76: Catawba River (03-1) | E76: Yes | F76: No | H76: =VLOOKUP(B76&"Water"&"Inside",'EFC Table'!$A$3:$H$502,8,FALSE) -> 
A77: 01-12-104 | B77: Brentwood-Jamestown Road | C77: Burke | D77: Catawba River (03-1) | E77: Yes | F77: No | H77: =VLOOKUP(B77&"Water"&"Inside",'EFC Table'!$A$3:$H$502,8,FALSE) -> 
A78: 01-88-010 | B78: Brevard | C78: Transylvania | D78: French Broad River (05-2) | E78: Yes | F78: No | H78: =VLOOKUP(B78&"Water"&"Inside",'EFC Table'!$A$3:$H$502,8,FALSE) -> 57.5
A79: 04-65-192 | B79: BRICKSTONE - MARSH OAKS | C79: New Hanover | D79: New River (02-6) | E79: No | F79: No | H79: =VLOOKUP(B79&"Water"&"Inside",'EFC Table'!$A$3:$H$502,8,FALSE) -> 
A80: 01-81-035 | B80: Broad River Water Authority | C80: Rutherford | D80: Broad River (01-1) | E80: Yes | F80: No | H80: =VLOOKUP(B80&"Water"&"Inside",'EFC Table'!$A$3:$H$502,8,FALSE) -> 51.2
A81: 03-53-015 | B81: Broadway | C81: Lee | D81: Cape Fear River (02-3) | E81: Yes | F81: No | H81: =VLOOKUP(B81&"Water"&"Inside",'EFC Table'!$A$3:$H$502,8,FALSE) -> 24.7
A82: 01-97-035 | B82: Broadway Water Association. Inc. | C82: Wilkes | D82: Yadkin River (18-1) | E82: Yes | F82: No | H82: =VLOOKUP(B82&"Water"&"Inside",'EFC Table'!$A$3:$H$502,8,FALSE) -> 28.35
A83: 01-18-050 | B83: BROOKFORD | C83: Catawba | D83: Catawba River (03-1) | E83: No | F83: No | H83: =VLOOKUP(B83&"Water"&"Inside",'EFC Table'!$A$3:$H$502,8,FALSE) -> 
A84: 03-26-127 | B84: Brookwood Community | C84: Cumberland | D84: Cape Fear River (02-3) | E84: Yes | F84: No | H84: =VLOOKUP(B84&"Water"&"Inside",'EFC Table'!$A$3:$H$502,8,FALSE) -> 
A85: 04-24-040 | B85: Brunswick | C85: Columbus | D85: Waccamaw River (09-3) | E85: Yes | F85: No | H85: =VLOOKUP(B85&"Water"&"Inside",'EFC Table'!$A$3:$H$502,8,FALSE) -> 
A86: 04-10-045 | B86: Brunswick County | C86: Brunswick | D86: Cape Fear River (02-3) | E86: Yes | F86: < 0.100 MGD | H86: =VLOOKUP(B86&"Water"&"Inside",'EFC Table'!$A$3:$H$502,8,FALSE) -> 36.75
A87: 04-10-070 | B87: Brunswick Regional WSD | C87: Brunswick | D87: Cape Fear River (02-3) | E87: Yes | F87: No | H87: =VLOOKUP(B87&"Water"&"Inside",'EFC Table'!$A$3:$H$502,8,FALSE) -> 30.5
A88: 01-87-010 | B88: Bryson City | C88: Swain | D88: Tuskasegee River (07-2) | E88: Yes | F88: No | H88: =VLOOKUP(B88&"Water"&"Inside",'EFC Table'!$A$3:$H$502,8,FALSE) -> 31.05
A89: 02-35-025 | B89: Bunn | C89: Franklin | D89: Tar River (15-1) | E89: Yes | F89: < 0.100 MGD | H89: =VLOOKUP(B89&"Water"&"Inside",'EFC Table'!$A$3:$H$502,8,FALSE) -> 45
A90: 04-71-010 | B90: Burgaw | C90: Pender | D90: Northeast Cape Fear River (02-5) | E90: Yes | F90: No | H90: =VLOOKUP(B90&"Water"&"Inside",'EFC Table'!$A$3:$H$502,8,FALSE) -> 26.25
A91: 01-12-065 | B91: Burke County | C91: Burke | D91: Catawba River (03-1) | E91: Yes | F91: < 0.100 MGD | H91: =VLOOKUP(B91&"Water"&"Inside",'EFC Table'!$A$3:$H$502,8,FALSE) -> 55
A92: 02-01-010 | B92: Burlington | C92: Alamance | D92: Haw River (02-1) | E92: Yes | F92: No | H92: =VLOOKUP(B92&"Water"&"Inside",'EFC Table'!$A$3:$H$502,8,FALSE) -> 22.7
A93: 01-00-010 | B93: Burnsville | C93: Yancey | D93: Nolichucky River (05-1) | E93: Yes | F93: No | H93: =VLOOKUP(B93&"Water"&"Inside",'EFC Table'!$A$3:$H$502,8,FALSE) -> 39.2
A94: 01-13-106 | B94: Cabarrus Woods | C94: Cabarrus | D94: Yadkin River (18-1) | E94: No | F94: No | H94: =VLOOKUP(B94&"Water"&"Inside",'EFC Table'!$A$3:$H$502,8,FALSE) -> 
A95: 10-14-001 | B95: Caldwell Co (Addison Lane) | C95: Caldwell | D95: Catawba River (03-1) | E95: Yes | F95: No | H95: 34.71
A96: 01-14-048 | B96: Caldwell Co (North) | C96: Caldwell | D96: Yadkin River (18-1) | E96: Yes | F96: < 0.100 MGD | H96: 34.71
A97: 01-14-047 | B97: Caldwell Co (Southeast) | C97: Caldwell | D97: Catawba River (03-1) | E97: Yes | F97: < 0.100 MGD | H97: 34.71
A98: 01-14-045 | B98: Caldwell Co (West) | C98: Caldwell | D98: Catawba River (03-1) | E98: Yes | F98: No | H98: 34.71
A99: 01-14-046 | B99: Caldwell County (South) | C99: Caldwell | D99: Catawba River (03-1) | E99: No | F99: No | H99: 34.71
A100: 04-31-045 | B100: Calypso | C100: Duplin | D100: Northeast Cape Fear River (02-5) | E100: Yes | F100: No | H100: =VLOOKUP(B100&"Water"&"Inside",'EFC Table'!$A$3:$H$502,8,FALSE) -> 37.5
A101: 03-63-040 | B101: Cameron | C101: Moore | D101: Cape Fear River (02-3) | E101: Yes | F101: No | H101: =VLOOKUP(B101&"Water"&"Inside",'EFC Table'!$A$3:$H$502,8,FALSE) -> 43
A102: 04-67-047 | B102: Camp Lejeune (Courthouse Bay) | C102: Onslow | D102: New River (02-6) | E102: No | F102: No | H102: =VLOOKUP(B102&"Water"&"Inside",'EFC Table'!$A$3:$H$502,8,FALSE) -> 
A103: 04-67-041 | B103: Camp Lejeune (Hadnot Point) | C103: Onslow | D103: New River (02-6) | E103: Yes | F103: No | H103: =VLOOKUP(B103&"Water"&"Inside",'EFC Table'!$A$3:$H$502,8,FALSE) -> 
A104: 04-67-043 | B104: Camp Lejeune (Holcomb Blvd) | C104: Onslow | D104: New River (02-6) | E104: Yes | F104: No | H104: =VLOOKUP(B104&"Water"&"Inside",'EFC Table'!$A$3:$H$502,8,FALSE) -> 
A105: 04-67-042 | B105: Camp Lejeune (New River Air Station) | C105: Onslow | D105: New River (02-6) | E105: Yes | F105: No | H105: =VLOOKUP(B105&"Water"&"Inside",'EFC Table'!$A$3:$H$502,8,FALSE) -> 
A106: 04-67-048 | B106: Camp Lejeune (Onslow Beach) | C106: Onslow | D106: New River (02-6) | E106: No | F106: No | H106: =VLOOKUP(B106&"Water"&"Inside",'EFC Table'!$A$3:$H$502,8,FALSE) -> 
A107: 04-67-046 | B107: Camp Lejeune (Rifle Range) | C107: Onslow | D107: New River (02-6) | E107: Yes | F107: No | H107: =VLOOKUP(B107&"Water"&"Inside",'EFC Table'!$A$3:$H$502,8,FALSE) -> 
A108: 03-43-030 | B108: Campbell University | C108: Harnett | D108: Cape Fear River (02-3) | E108: No | F108: No | H108: =VLOOKUP(B108&"Water"&"Inside",'EFC Table'!$A$3:$H$502,8,FALSE) -> 
A109: 03-62-030 | B109: Candor | C109: Montgomery | D109: Deep River (02-2) | E109: Yes | F109: < 0.100 MGD | H109: =VLOOKUP(B109&"Water"&"Inside",'EFC Table'!$A$3:$H$502,8,FALSE) -> 44.75
A110: 04-45-999 | B110: Cane Creek Water - Sewer District | C110: Henderson | D110: French Broad River (05-2) | E110: No | F110: No | H110: =VLOOKUP(B110&"Water"&"Inside",'EFC Table'!$A$3:$H$502,8,FALSE) -> 
A111: 01-44-015 | B111: Canton | C111: Haywood | D111: Pigeon River (05-3) | E111: Yes | F111: < 0.100 MGD | H111: =VLOOKUP(B111&"Water"&"Inside",'EFC Table'!$A$3:$H$502,8,FALSE) -> 22.76
A112: 04-65-010 | B112: Cape Fear Public Utility Authority - Wilmington | C112: New Hanover | D112: Cape Fear River (02-3) | E112: Yes | F112: < 0.100 MGD | H112: =VLOOKUP(B112&"Water"&"Inside",'EFC Table'!$A$3:$H$502,8,FALSE) -> 39.91
A113: 04-65-015 | B113: Carolina Beach | C113: New Hanover | D113: Cape Fear River (02-3) | E113: Yes | F113: No | H113: =VLOOKUP(B113&"Water"&"Inside",'EFC Table'!$A$3:$H$502,8,FALSE) -> 34.62
A114: 04-10-121 | B114: Carolina Shores SD | C114: Brunswick | D114: Shallotte River (09-4) | E114: No | F114: No | H114: =VLOOKUP(B114&"Water"&"Inside",'EFC Table'!$A$3:$H$502,8,FALSE) -> 
A115: 03-53-101 | B115: Carolina Trace WS | C115: Lee | D115: Cape Fear River (02-3) | E115: Yes | F115: No | H115: =VLOOKUP(B115&"Water"&"Inside",'EFC Table'!$A$3:$H$502,8,FALSE) -> 
A116: 03-63-025 | B116: Carthage | C116: Moore | D116: Cape Fear River (02-3) | E116: Yes | F116: < 0.100 MGD | H116: =VLOOKUP(B116&"Water"&"Inside",'EFC Table'!$A$3:$H$502,8,FALSE) -> 43
A117: 03-92-020 | B117: Cary | C117: Wake | D117: Neuse River (10-1) | E117: Yes | F117: < 0.100 MGD | H117: =VLOOKUP(B117&"Water"&"Inside",'EFC Table'!$A$3:$H$502,8,FALSE) -> 28.57
A118: 04-64-055 | B118: Castalia | C118: Nash | D118: Tar River (15-1) | E118: No | F118: No | H118: =VLOOKUP(B118&"Water"&"Inside",'EFC Table'!$A$3:$H$502,8,FALSE) -> 
A119: 04-10-055 | B119: Caswell Beach | C119: Brunswick | D119: Cape Fear River (02-3) | E119: No | F119: No | H119: =VLOOKUP(B119&"Water"&"Inside",'EFC Table'!$A$3:$H$502,8,FALSE) -> 
A120: 40-64-005 | B120: Central Nash WSD | C120: Nash | D120: Tar River (15-1) | E120: Yes | F120: No | H120: =VLOOKUP(B120&"Water"&"Inside",'EFC Table'!$A$3:$H$502,8,FALSE) -> 
A121: 04-24-055 | B121: Cerro Gordo | C121: Columbus | D121: Lumber River (09-1) | E121: Yes | F121: No | H121: =VLOOKUP(B121&"Water"&"Inside",'EFC Table'!$A$3:$H$502,8,FALSE) -> 24
A122: 04-24-020 | B122: Chadbourn | C122: Columbus | D122: Waccamaw River (09-3) | E122: Yes | F122: No | H122: =VLOOKUP(B122&"Water"&"Inside",'EFC Table'!$A$3:$H$502,8,FALSE) -> 42.88
A123: 01-60-010 | B123: Charlotte Water | C123: Mecklenburg | D123: Catawba River (03-1) | E123: Yes | F123: < 0.100 MGD | H123: =VLOOKUP(B123&"Water"&"Inside",'EFC Table'!$A$3:$H$502,8,FALSE) -> 19.89
A124: 03-19-045 | B124: Chatham Co (East) | C124: Chatham | D124: Cape Fear River (02-3) | E124: No | F124: < 0.100 MGD | H124: 50
A125: 40-19-010 | B125: Chatham County Asbury Water System | C125: Chatham | D125: Deep River (02-2) | E125: Yes | F125: No | H125: 50
A126: 03-19-126 | B126: Chatham County North Water System | C126: Chatham | D126: Haw River (02-1) | E126: Yes | F126: No | H126: 50
A127: 03-19-050 | B127: Chatham County Southwest Water System | C127: Chatham | D127: Deep River (02-2) | E127: Yes | F127: No | H127: 50
A128: 04-25-035 | B128: Cherry Point MCAS | C128: Craven | D128: Neuse River (10-1) | E128: Yes | F128: No | H128: =VLOOKUP(B128&"Water"&"Inside",'EFC Table'!$A$3:$H$502,8,FALSE) -> 
A129: 01-36-030 | B129: Cherryville | C129: Gaston | D129: South Fork Catawba River (03-2) | E129: Yes | F129: < 0.100 MGD | H129: =VLOOKUP(B129&"Water"&"Inside",'EFC Table'!$A$3:$H$502,8,FALSE) -> 43
A130: 01-81-107 | B130: Chimney Rock Water Works | C130: Rutherford | D130: Broad River (01-1) | E130: Yes | F130: No | H130: =VLOOKUP(B130&"Water"&"Inside",'EFC Table'!$A$3:$H$502,8,FALSE) -> 31.25
A131: 01-80-040 | B131: China Grove | C131: Rowan | D131: Yadkin River (18-1) | E131: Yes | F131: No | H131: =VLOOKUP(B131&"Water"&"Inside",'EFC Table'!$A$3:$H$502,8,FALSE) -> 
A132: 04-31-050 | B132: Chinquapin Water Association | C132: Duplin | D132: Northeast Cape Fear River (02-5) | E132: Yes | F132: No | H132: =VLOOKUP(B132&"Water"&"Inside",'EFC Table'!$A$3:$H$502,8,FALSE) -> 31.25
A133: 04-07-025 | B133: Chocowinity | C133: Beaufort | D133: Pamlico River & Sound (15-3) | E133: Yes | F133: No | H133: =VLOOKUP(B133&"Water"&"Inside",'EFC Table'!$A$3:$H$502,8,FALSE) -> 43.5
A134: 04-21-015 | B134: Chowan County | C134: Chowan | D134: Chowan River (04-1) | E134: Yes | F134: No | H134: =VLOOKUP(B134&"Water"&"Inside",'EFC Table'!$A$3:$H$502,8,FALSE) -> 35
A135: 02-76-015 | B135: City of Randleman | C135: Randolph | D135: Deep River (02-2) | E135: Yes | F135: < 0.100 MGD | H135: =VLOOKUP(B135&"Water"&"Inside",'EFC Table'!$A$3:$H$502,8,FALSE) -> 38.65
A136: 02-34-010 | B136: City of Winston-Salem | C136: Forsyth | D136: Yadkin River (18-1) | E136: Yes | F136: < 0.100 MGD | H136: =VLOOKUP(B136&"Water"&"Inside",'EFC Table'!$A$3:$H$502,8,FALSE) -> 27.85
A137: 01-18-035 | B137: Claremont | C137: Catawba | D137: Catawba River (03-1) | E137: Yes | F137: No | H137: =VLOOKUP(B137&"Water"&"Inside",'EFC Table'!$A$3:$H$502,8,FALSE) -> 33.59
A138: 03-09-020 | B138: Clarkton | C138: Bladen | D138: Waccamaw River (09-3) | E138: Yes | F138: No | H138: =VLOOKUP(B138&"Water"&"Inside",'EFC Table'!$A$3:$H$502,8,FALSE) -> 28.75
A139: 01-22-010 | B139: Clay Co WSD | C139: Clay | D139: Hiwassee River (06-1) | E139: Yes | F139: No | H139: =VLOOKUP(B139&"Water"&"Inside",'EFC Table'!$A$3:$H$502,8,FALSE) -> 
A140: 03-51-020 | B140: Clayton | C140: Johnston | D140: Neuse River (10-1) | E140: Yes | F140: No | H140: =VLOOKUP(B140&"Water"&"Inside",'EFC Table'!$A$3:$H$502,8,FALSE) -> 45.5
A141: 40-51-019 | B141: Clayton North | C141: Johnston | D141: Neuse River (10-1) | E141: No | F141: No | H141: =VLOOKUP(B141&"Water"&"Inside",'EFC Table'!$A$3:$H$502,8,FALSE) -> 
A142: 01-80-050 | B142: Cleveland | C142: Rowan | D142: South Yadkin River (18-2) | E142: Yes | F142: No | H142: =VLOOKUP(B142&"Water"&"Inside",'EFC Table'!$A$3:$H$502,8,FALSE) -> 32.38
A143: 01-23-055 | B143: Cleveland County Water | C143: Cleveland | D143: Broad River (01-1) | E143: Yes | F143: No | H143: =VLOOKUP(B143&"Water"&"Inside",'EFC Table'!$A$3:$H$502,8,FALSE) -> 31.76
A144: 03-26-332 | B144: Cliffdale West | C144: Cumberland | D144: Cape Fear River (02-3) | E144: Yes | F144: No | H144: =VLOOKUP(B144&"Water"&"Inside",'EFC Table'!$A$3:$H$502,8,FALSE) -> 
A145: 03-82-010 | B145: Clinton | C145: Sampson | D145: South River (02-4) | E145: Yes | F145: No | H145: =VLOOKUP(B145&"Water"&"Inside",'EFC Table'!$A$3:$H$502,8,FALSE) -> 22.75
A146: 01-44-025 | B146: Clyde | C146: Haywood | D146: Pigeon River (05-3) | E146: Yes | F146: No | H146: =VLOOKUP(B146&"Water"&"Inside",'EFC Table'!$A$3:$H$502,8,FALSE) -> 40.82
A147: 03-43-020 | B147: Coats | C147: Harnett | D147: Cape Fear River (02-3) | E147: Yes | F147: < 0.100 MGD | H147: =VLOOKUP(B147&"Water"&"Inside",'EFC Table'!$A$3:$H$502,8,FALSE) -> 32.75
A148: 04-46-030 | B148: Cofield | C148: Hertford | D148: Chowan River (04-1) | E148: Yes | F148: No | H148: =VLOOKUP(B148&"Water"&"Inside",'EFC Table'!$A$3:$H$502,8,FALSE) -> 
A149: 04-89-010 | B149: Columbia | C149: Tyrrell | D149: Albemarle Sound (12-1) | E149: Yes | F149: No | H149: =VLOOKUP(B149&"Water"&"Inside",'EFC Table'!$A$3:$H$502,8,FALSE) -> 36.22
A150: 01-75-015 | B150: Columbus | C150: Polk | D150: Broad River (01-1) | E150: Yes | F150: No | H150: =VLOOKUP(B150&"Water"&"Inside",'EFC Table'!$A$3:$H$502,8,FALSE) -> 31.05
A151: 04-24-060 | B151: Columbus Co WSD I | C151: Columbus | D151: Lumber River (09-1) | E151: Yes | F151: No | H151: 49.05
A152: 70-24-007 | B152: Columbus Co WSD II | C152: Columbus | D152: Waccamaw River (09-3) | E152: Yes | F152: No | H152: 49.05
A153: 70-24-012 | B153: Columbus Co WSD III | C153: Columbus | D153: Waccamaw River (09-3) | E153: Yes | F153: No | H153: 49.05
A154: 70-24-013 | B154: Columbus Co WSD IV | C154: Columbus | D154: Lumber River (09-1) | E154: Yes | F154: No | H154: 49.05
A155: 01-13-010 | B155: Concord | C155: Cabarrus | D155: Rocky River (18-4) | E155: Yes | F155: < 0.100 MGD | H155: =VLOOKUP(B155&"Water"&"Inside",'EFC Table'!$A$3:$H$502,8,FALSE) -> 31.39
A156: 01-81-050 | B156: Concord Community WS | C156: Rutherford | D156: Broad River (01-1) | E156: Yes | F156: No | H156: =VLOOKUP(B156&"Water"&"Inside",'EFC Table'!$A$3:$H$502,8,FALSE) -> 
A157: 01-88-104 | B157: Connestee Falls | C157: Transylvania | D157: French Broad River (05-2) | E157: Yes | F157: No | H157: =VLOOKUP(B157&"Water"&"Inside",'EFC Table'!$A$3:$H$502,8,FALSE) -> 
A158: 01-18-020 | B158: Conover | C158: Catawba | D158: Catawba River (03-1) | E158: Yes | F158: < 0.100 MGD | H158: =VLOOKUP(B158&"Water"&"Inside",'EFC Table'!$A$3:$H$502,8,FALSE) -> 26.54
A159: 04-66-025 | B159: Conway | C159: Northampton | D159: Meherrin River (04-2) | E159: Yes | F159: No | H159: =VLOOKUP(B159&"Water"&"Inside",'EFC Table'!$A$3:$H$502,8,FALSE) -> 20.75
A160: 04-25-045 | B160: Cove City | C160: Craven | D160: Neuse River (10-1) | E160: Yes | F160: No | H160: =VLOOKUP(B160&"Water"&"Inside",'EFC Table'!$A$3:$H$502,8,FALSE) -> 61
A161: 02-39-030 | B161: Cozart Water SD | C161: Granville | D161: Neuse River (10-1) | E161: No | F161: No | H161: =VLOOKUP(B161&"Water"&"Inside",'EFC Table'!$A$3:$H$502,8,FALSE) -> 
A162: 01-36-040 | B162: Cramerton | C162: Gaston | D162: South Fork Catawba River (03-2) | E162: No | F162: < 0.100 MGD | H162: =VLOOKUP(B162&"Water"&"Inside",'EFC Table'!$A$3:$H$502,8,FALSE) -> 
A163: 04-25-055 | B163: Craven County | C163: Craven | D163: Neuse River (10-1) | E163: Yes | F163: No | H163: =VLOOKUP(B163&"Water"&"Inside",'EFC Table'!$A$3:$H$502,8,FALSE) -> 21
A164: 02-39-015 | B164: Creedmoor | C164: Granville | D164: Neuse River (10-1) | E164: No | F164: No | H164: =VLOOKUP(B164&"Water"&"Inside",'EFC Table'!$A$3:$H$502,8,FALSE) -> 
A165: 04-94-020 | B165: Creswell | C165: Washington | D165: Albemarle Sound (12-1) | E165: Yes | F165: No | H165: =VLOOKUP(B165&"Water"&"Inside",'EFC Table'!$A$3:$H$502,8,FALSE) -> 79.1
A166: 01-06-010 | B166: Crossnore | C166: Avery | D166: Catawba River (03-1) | E166: Yes | F166: No | H166: =VLOOKUP(B166&"Water"&"Inside",'EFC Table'!$A$3:$H$502,8,FALSE) -> 24
A167: 04-27-010 | B167: Currituck Co - Mainland | C167: Currituck | D167: Albemarle Sound (12-1) | E167: Yes | F167: No | H167: =VLOOKUP(B167&"Water"&"Inside",'EFC Table'!$A$3:$H$502,8,FALSE) -> 
A168: 01-36-065 | B168: Dallas | C168: Gaston | D168: South Fork Catawba River (03-2) | E168: Yes | F168: No | H168: =VLOOKUP(B168&"Water"&"Inside",'EFC Table'!$A$3:$H$502,8,FALSE) -> 38.45
A169: 02-79-040 | B169: Dan River Water Inc. | C169: Rockingham | D169: Roanoke River (14-1) | E169: Yes | F169: No | H169: =VLOOKUP(B169&"Water"&"Inside",'EFC Table'!$A$3:$H$502,8,FALSE) -> 46.55
A170: 02-85-020 | B170: Danbury | C170: Stokes | D170: Roanoke River (14-1) | E170: Yes | F170: No | H170: =VLOOKUP(B170&"Water"&"Inside",'EFC Table'!$A$3:$H$502,8,FALSE) -> 
A171: 04-28-030 | B171: Dare Co Regional | C171: Dare | D171: Albemarle Sound (12-1) | E171: Yes | F171: No | H171: 34.34
A172: 04-28-035 | B172: Dare Co Rodanthe-Waves-Salvo | C172: Dare | D172: Albemarle Sound (12-1) | E172: Yes | F172: No | H172: 34.34
A173: 04-28-025 | B173: Dare Co. Cape Hatteras | C173: Dare | D173: Albemarle Sound (12-1) | E173: Yes | F173: No | H173: 34.34
A174: 04-28-999 | B174: DARE CO. Stumpy Point WSD | C174: Dare | D174: Albemarle Sound (12-1) | E174: No | F174: No | H174: =VLOOKUP(B174&"Water"&"Inside",'EFC Table'!$A$3:$H$502,8,FALSE) -> 
A175: 02-29-025 | B175: Davidson Water | C175: Davidson | D175: Yadkin River (18-1) | E175: Yes | F175: < 0.100 MGD | H175: =VLOOKUP(B175&"Water"&"Inside",'EFC Table'!$A$3:$H$502,8,FALSE) -> 
A176: 02-30-015 | B176: Davie Co | C176: Davie | D176: Yadkin River (18-1) | E176: Yes | F176: No | H176: =VLOOKUP(B176&"Water"&"Inside",'EFC Table'!$A$3:$H$502,8,FALSE) -> 
A177: 04-54-030 | B177: Deep Run Water Corp | C177: Lenoir | D177: Trent River (10-3) | E177: Yes | F177: No | H177: =VLOOKUP(B177&"Water"&"Inside",'EFC Table'!$A$3:$H$502,8,FALSE) -> 40
A178: 02-29-030 | B178: Denton | C178: Davidson | D178: Yadkin River (18-1) | E178: Yes | F178: No | H178: =VLOOKUP(B178&"Water"&"Inside",'EFC Table'!$A$3:$H$502,8,FALSE) -> 58.29
A179: 02-86-030 | B179: Dobson | C179: Surry | D179: Yadkin River (18-1) | E179: Yes | F179: No | H179: =VLOOKUP(B179&"Water"&"Inside",'EFC Table'!$A$3:$H$502,8,FALSE) -> 43.75
A180: 04-64-060 | B180: Dortches | C180: Nash | D180: Tar River (15-1) | E180: No | F180: No | H180: =VLOOKUP(B180&"Water"&"Inside",'EFC Table'!$A$3:$H$502,8,FALSE) -> 
A181: 04-25-025 | B181: Dover | C181: Craven | D181: Neuse River (10-1) | E181: Yes | F181: No | H181: =VLOOKUP(B181&"Water"&"Inside",'EFC Table'!$A$3:$H$502,8,FALSE) -> 33.75
A182: 01-12-045 | B182: Drexel | C182: Burke | D182: Catawba River (03-1) | E182: Yes | F182: No | H182: =VLOOKUP(B182&"Water"&"Inside",'EFC Table'!$A$3:$H$502,8,FALSE) -> 46.9
A183: 03-09-025 | B183: Dublin | C183: Bladen | D183: Cape Fear River (02-3) | E183: Yes | F183: No | H183: =VLOOKUP(B183&"Water"&"Inside",'EFC Table'!$A$3:$H$502,8,FALSE) -> 39.38
A184: 03-43-010 | B184: Dunn | C184: Harnett | D184: Cape Fear River (02-3) | E184: Yes | F184: < 0.100 MGD | H184: =VLOOKUP(B184&"Water"&"Inside",'EFC Table'!$A$3:$H$502,8,FALSE) -> 32.7
A185: 04-31-085 | B185: Duplin Co | C185: Duplin | D185: Northeast Cape Fear River (02-5) | E185: Yes | F185: No | H185: =VLOOKUP(B185&"Water"&"Inside",'EFC Table'!$A$3:$H$502,8,FALSE) -> 33.75
A186: 04-31-994 | B186: DUPLIN CO | C186: Duplin | D186: Northeast Cape Fear River (02-5) | E186: No | F186: No | H186: =VLOOKUP(B186&"Water"&"Inside",'EFC Table'!$A$3:$H$502,8,FALSE) -> 33.75
A187: 04-31-090 | B187: DUPLIN CO WD D | C187: Duplin | D187: Northeast Cape Fear River (02-5) | E187: No | F187: No | H187: =VLOOKUP(B187&"Water"&"Inside",'EFC Table'!$A$3:$H$502,8,FALSE) -> 
A188: 04-31-075 | B188: DUPLIN CO WD E | C188: Duplin | D188: South River (02-4) | E188: No | F188: No | H188: =VLOOKUP(B188&"Water"&"Inside",'EFC Table'!$A$3:$H$502,8,FALSE) -> 
A189: 04-31-998 | B189: DUPLIN CO WD F | C189: Duplin | D189: Northeast Cape Fear River (02-5) | E189: No | F189: No | H189: =VLOOKUP(B189&"Water"&"Inside",'EFC Table'!$A$3:$H$502,8,FALSE) -> 
A190: 04-31-065 | B190: DUPLIN CO WD G | C190: Duplin | D190: Northeast Cape Fear River (02-5) | E190: No | F190: No | H190: =VLOOKUP(B190&"Water"&"Inside",'EFC Table'!$A$3:$H$502,8,FALSE) -> 
A191: 03-32-010 | B191: Durham | C191: Durham | D191: Neuse River (10-1) | E191: Yes | F191: < 0.100 MGD | H191: =VLOOKUP(B191&"Water"&"Inside",'EFC Table'!$A$3:$H$502,8,FALSE) -> 28.84
A192: 40-32-018 | B192: Durham County (Rougemont) | C192: Durham | D192: Neuse River (10-1) | E192: Yes | F192: No | H192: =VLOOKUP(B192&"Water"&"Inside",'EFC Table'!$A$3:$H$502,8,FALSE) -> 
A193: 03-09-050 | B193: East Arcadia | C193: Bladen | D193: Cape Fear River (02-3) | E193: Yes | F193: No | H193: =VLOOKUP(B193&"Water"&"Inside",'EFC Table'!$A$3:$H$502,8,FALSE) -> 24
A194: 02-99-025 | B194: East Bend | C194: Yadkin | D194: Yadkin River (18-1) | E194: Yes | F194: No | H194: =VLOOKUP(B194&"Water"&"Inside",'EFC Table'!$A$3:$H$502,8,FALSE) -> 90.64
A195: 50-63-011 | B195: East Moore Water District | C195: Moore | D195: Cape Fear River (02-3) | E195: Yes | F195: < 0.100 MGD | H195: =VLOOKUP(B195&"Water"&"Inside",'EFC Table'!$A$3:$H$502,8,FALSE) -> 
A196: 01-80-060 | B196: East Spencer | C196: Rowan | D196: Yadkin River (18-1) | E196: Yes | F196: No | H196: =VLOOKUP(B196&"Water"&"Inside",'EFC Table'!$A$3:$H$502,8,FALSE) -> 58.15
A197: 04-74-015 | B197: Eastern Pines Water Corporation | C197: Pitt | D197: Neuse River (10-1) | E197: Yes | F197: No | H197: =VLOOKUP(B197&"Water"&"Inside",'EFC Table'!$A$3:$H$502,8,FALSE) -> 42.5
A198: 50-26-027 | B198: Eastover Sanitary District | C198: Cumberland | D198: Cape Fear River (02-3) | E198: Yes | F198: No | H198: =VLOOKUP(B198&"Water"&"Inside",'EFC Table'!$A$3:$H$502,8,FALSE) -> 51.8
A199: 03-26-999 | B199: Eastover SD | C199: Cumberland | D199: Cape Fear River (02-3) | E199: No | F199: No | H199: =VLOOKUP(B199&"Water"&"Inside",'EFC Table'!$A$3:$H$502,8,FALSE) -> 
A200: 02-79-010 | B200: Eden | C200: Rockingham | D200: Roanoke River (14-1) | E200: Yes | F200: No | H200: =VLOOKUP(B200&"Water"&"Inside",'EFC Table'!$A$3:$H$502,8,FALSE) -> 40.8
... 503 more rows
